Organisation Code,Organisation Label,Effective Date,Organisational Unit,Service Division Label,Category Internal Name,Purpose,Detailed Expenditure Code,Payment Date,Transaction Number,Irrecoverable VAT Amount,Amount,Capital Or Revenue,Beneficiary Name,Procurement Card
Http://opendatacommunities.org/id/metropolitan-district-council/leeds,Leeds City Council,31/05/2020,Resources and Housing,Leeds Building Services,Supplies and Services,Operational Materials,205,07/05/2020,0520-00001,0.00,41.90,R,A & A Electrical Distributors Ltd,No
Http://opendatacommunities.org/id/metropolitan-district-council/leeds,Leeds City Council,31/05/2020,Adults and Health,Services For Older People - 65 And Over,Third Party Payments,Nursing Home,570,04/05/2020,0520-00002,0.00,540.00,R,A & V Transitional Homes,No
Http://opendatacommunities.org/id/metropolitan-district-council/leeds,Leeds City Council,31/05/2020,Adults and Health,Services For Older People Under 65 P/Dis,Third Party Payments,Sheltered Accommodation,569,27/05/2020,0520-00003,0.00,5400.00,R,A & V Transitional Homes,No
Http://opendatacommunities.org/id/metropolitan-district-council/leeds,Leeds City Council,31/05/2020,Resources and Housing,HRA Housing Leeds,Capital,Other Costs,7,07/05/2020,0520-00004,0.00,80.00,C,REDACTED PERSONAL DATA,No
Http://opendatacommunities.org/id/metropolitan-district-council/leeds,Leeds City Council,31/05/2020,Resources and Housing,Leeds Building Services,Supplies and Services,Operational Materials,205,19/05/2020,0520-00005,0.00,21.08,R,A Andrews & Sons (Marbles & Tiles),No
Http://opendatacommunities.org/id/metropolitan-district-council/leeds,Leeds City Council,31/05/2020,Resources and Housing,HRA Housing Leeds,Capital,Other Costs,7,12/05/2020,0520-00006,0.00,100.00,C,REDACTED PERSONAL DATA,No
Http://opendatacommunities.org/id/metropolitan-district-council/leeds,Leeds City Council,31/05/2020,Children and Families,Social Care,Third Party Payments,Services Rendered By Other Organisations,511,01/05/2020,0520-00007,0.00,315.36,R,REDACTED PERSONAL DATA,No
Http://opendatacommunities.org/id/metropolitan-district-council/leeds,Leeds City Council,31/05/2020,Resources and Housing,HRA Housing Leeds,Capital,Other Costs,7,01/05/2020,0520-00008,0.00,120.00,C,REDACTED PERSONAL DATA,No
Http://opendatacommunities.org/id/metropolitan-district-council/leeds,Leeds City Council,31/05/2020,Resources and Housing,Leeds Building Services,Supplies and Services,Other Hired And Contracted Services,265,07/05/2020,0520-00009,0.00,13513.50,R,A Buckler (Haulage) Ltd,No
Http://opendatacommunities.org/id/metropolitan-district-council/leeds,Leeds City Council,31/05/2020,Resources and Housing,Leeds Building Services,Supplies and Services,Other Hired And Contracted Services,265,15/05/2020,0520-00010,0.00,2450.00,R,A Buckler (Haulage) Ltd,No
Http://opendatacommunities.org/id/metropolitan-district-council/leeds,Leeds City Council,31/05/2020,Resources and Housing,Leeds Building Services,Supplies and Services,Other Hired And Contracted Services,265,29/05/2020,0520-00011,0.00,18650.00,R,A Buckler (Haulage) Ltd,No
Http://opendatacommunities.org/id/metropolitan-district-council/leeds,Leeds City Council,31/05/2020,Children and Families,Social Care,Third Party Payments,Services Rendered By Other Organisations,511,01/05/2020,0520-00012,0.00,861.99,R,REDACTED PERSONAL DATA,No
Http://opendatacommunities.org/id/metropolitan-district-council/leeds,Leeds City Council,31/05/2020,Children and Families,Social Care,Third Party Payments,Services Rendered By Other Organisations,511,01/05/2020,0520-00013,0.00,315.36,R,REDACTED PERSONAL DATA,No
Http://opendatacommunities.org/id/metropolitan-district-council/leeds,Leeds City Council,31/05/2020,Resources and Housing,HRA Housing Leeds,Capital,Construction,3,01/05/2020,0520-00014,0.00,216124.45,C,A Connolly Limited,No
Http://opendatacommunities.org/id/metropolitan-district-council/leeds,Leeds City Council,31/05/2020,Resources and Housing,Leeds Building Services,Supplies and Services,Other Hired And Contracted Services,265,04/05/2020,0520-00015,0.00,2263.00,R,A Coole Electrical Ltd,No
Http://opendatacommunities.org/id/metropolitan-district-council/leeds,Leeds City Council,31/05/2020,Resources and Housing,Leeds Building Services,Supplies and Services,Other Hired And Contracted Services,265,04/05/2020,0520-00016,0.00,2438.00,R,A Coole Electrical Ltd,No
Http://opendatacommunities.org/id/metropolitan-district-council/leeds,Leeds City Council,31/05/2020,Resources and Housing,Leeds Building Services,Supplies and Services,Other Hired And Contracted Services,265,04/05/2020,0520-00017,0.00,2483.00,R,A Coole Electrical Ltd,No
Http://opendatacommunities.org/id/metropolitan-district-council/leeds,Leeds City Council,31/05/2020,Resources and Housing,Leeds Building Services,Supplies and Services,Other Hired And Contracted Services,265,04/05/2020,0520-00018,0.00,2288.00,R,A Coole Electrical Ltd,No
Http://opendatacommunities.org/id/metropolitan-district-council/leeds,Leeds City Council,31/05/2020,Resources and Housing,Leeds Building Services,Supplies and Services,Other Hired And Contracted Services,265,04/05/2020,0520-00019,0.00,2390.00,R,A Coole Electrical Ltd,No
Http://opendatacommunities.org/id/metropolitan-district-council/leeds,Leeds City Council,31/05/2020,Resources and Housing,Leeds Building Services,Supplies and Services,Other Hired And Contracted Services,265,04/05/2020,0520-00020,0.00,2263.00,R,A Coole Electrical Ltd,No
Http://opendatacommunities.org/id/metropolitan-district-council/leeds,Leeds City Council,31/05/2020,Resources and Housing,Leeds Building Services,Supplies and Services,Other Hired And Contracted Services,265,04/05/2020,0520-00021,0.00,1065.00,R,A Coole Electrical Ltd,No
Http://opendatacommunities.org/id/metropolitan-district-council/leeds,Leeds City Council,31/05/2020,Resources and Housing,Leeds Building Services,Supplies and Services,Other Hired And Contracted Services,265,04/05/2020,0520-00022,0.00,2493.00,R,A Coole Electrical Ltd,No
Http://opendatacommunities.org/id/metropolitan-district-council/leeds,Leeds City Council,31/05/2020,Resources and Housing,Leeds Building Services,Supplies and Services,Other Hired And Contracted Services,265,04/05/2020,0520-00023,0.00,2578.00,R,A Coole Electrical Ltd,No
Http://opendatacommunities.org/id/metropolitan-district-council/leeds,Leeds City Council,31/05/2020,Resources and Housing,Leeds Building Services,Supplies and Services,Other Hired And Contracted Services,265,04/05/2020,0520-00024,0.00,2263.00,R,A Coole Electrical Ltd,No
Http://opendatacommunities.org/id/metropolitan-district-council/leeds,Leeds City Council,31/05/2020,Resources and Housing,Leeds Building Services,Supplies and Services,Other Hired And Contracted Services,265,04/05/2020,0520-00025,0.00,2243.00,R,A Coole Electrical Ltd,No
Http://opendatacommunities.org/id/metropolitan-district-council/leeds,Leeds City Council,31/05/2020,Resources and Housing,Leeds Building Services,Supplies and Services,Other Hired And Contracted Services,265,04/05/2020,0520-00026,0.00,1900.00,R,A Coole Electrical Ltd,No
Http://opendatacommunities.org/id/metropolitan-district-council/leeds,Leeds City Council,31/05/2020,Resources and Housing,Leeds Building Services,Supplies and Services,Other Hired And Contracted Services,265,05/05/2020,0520-00027,0.00,2308.00,R,A Coole Electrical Ltd,No
Http://opendatacommunities.org/id/metropolitan-district-council/leeds,Leeds City Council,31/05/2020,Resources and Housing,Leeds Building Services,Supplies and Services,Other Hired And Contracted Services,265,06/05/2020,0520-00028,0.00,2168.00,R,A Coole Electrical Ltd,No
Http://opendatacommunities.org/id/metropolitan-district-council/leeds,Leeds City Council,31/05/2020,Resources and Housing,Leeds Building Services,Supplies and Services,Other Hired And Contracted Services,265,06/05/2020,0520-00029,0.00,2258.00,R,A Coole Electrical Ltd,No
Http://opendatacommunities.org/id/metropolitan-district-council/leeds,Leeds City Council,31/05/2020,Resources and Housing,Leeds Building Services,Supplies and Services,Other Hired And Contracted Services,265,06/05/2020,0520-00030,0.00,2618.00,R,A Coole Electrical Ltd,No
Http://opendatacommunities.org/id/metropolitan-district-council/leeds,Leeds City Council,31/05/2020,Resources and Housing,Leeds Building Services,Supplies and Services,Other Hired And Contracted Services,265,06/05/2020,0520-00031,0.00,2308.00,R,A Coole Electrical Ltd,No
Http://opendatacommunities.org/id/metropolitan-district-council/leeds,Leeds City Council,31/05/2020,Resources and Housing,Leeds Building Services,Supplies and Services,Other Hired And Contracted Services,265,06/05/2020,0520-00032,0.00,2398.00,R,A Coole Electrical Ltd,No
Http://opendatacommunities.org/id/metropolitan-district-council/leeds,Leeds City Council,31/05/2020,Resources and Housing,Leeds Building Services,Supplies and Services,Other Hired And Contracted Services,265,06/05/2020,0520-00033,0.00,2443.00,R,A Coole Electrical Ltd,No
Http://opendatacommunities.org/id/metropolitan-district-council/leeds,Leeds City Council,31/05/2020,Resources and Housing,Leeds Building Services,Supplies and Services,Other Hired And Contracted Services,265,06/05/2020,0520-00034,0.00,2443.00,R,A Coole Electrical Ltd,No
Http://opendatacommunities.org/id/metropolitan-district-council/leeds,Leeds City Council,31/05/2020,Resources and Housing,Leeds Building Services,Supplies and Services,Other Hired And Contracted Services,265,06/05/2020,0520-00035,0.00,2353.00,R,A Coole Electrical Ltd,No
Http://opendatacommunities.org/id/metropolitan-district-council/leeds,Leeds City Council,31/05/2020,Resources and Housing,Leeds Building Services,Supplies and Services,Other Hired And Contracted Services,265,06/05/2020,0520-00036,0.00,2258.00,R,A Coole Electrical Ltd,No
Http://opendatacommunities.org/id/metropolitan-district-council/leeds,Leeds City Council,31/05/2020,Resources and Housing,Leeds Building Services,Supplies and Services,Other Hired And Contracted Services,265,06/05/2020,0520-00037,0.00,2740.00,R,A Coole Electrical Ltd,No
Http://opendatacommunities.org/id/metropolitan-district-council/leeds,Leeds City Council,31/05/2020,Resources and Housing,Leeds Building Services,Supplies and Services,Other Hired And Contracted Services,265,06/05/2020,0520-00038,0.00,2443.00,R,A Coole Electrical Ltd,No
Http://opendatacommunities.org/id/metropolitan-district-council/leeds,Leeds City Council,31/05/2020,Resources and Housing,Leeds Building Services,Supplies and Services,Other Hired And Contracted Services,265,15/05/2020,0520-00039,0.00,50.00,R,A Coole Electrical Ltd,No
Http://opendatacommunities.org/id/metropolitan-district-council/leeds,Leeds City Council,31/05/2020,Resources and Housing,Leeds Building Services,Supplies and Services,Other Hired And Contracted Services,265,15/05/2020,0520-00040,0.00,87.00,R,A Coole Electrical Ltd,No
Http://opendatacommunities.org/id/metropolitan-district-council/leeds,Leeds City Council,31/05/2020,Resources and Housing,HRA Housing Leeds,Capital,Other Costs,7,28/05/2020,0520-00041,0.00,100.00,C,REDACTED PERSONAL DATA,No
Http://opendatacommunities.org/id/metropolitan-district-council/leeds,Leeds City Council,31/05/2020,Children and Families,Social Care,Third Party Payments,Services Rendered By Voluntary Sector,505,01/05/2020,0520-00042,0.00,4910.86,R,REDACTED PERSONAL DATA,No
Http://opendatacommunities.org/id/metropolitan-district-council/leeds,Leeds City Council,31/05/2020,Children and Families,Social Care,Third Party Payments,Services Rendered By Voluntary Sector,505,06/05/2020,0520-00043,0.00,950.40,R,REDACTED PERSONAL DATA,No
Http://opendatacommunities.org/id/metropolitan-district-council/leeds,Leeds City Council,31/05/2020,Resources and Housing,HRA Housing Leeds,Capital,Other Costs,7,07/05/2020,0520-00044,0.00,100.00,C,REDACTED PERSONAL DATA,No
Http://opendatacommunities.org/id/metropolitan-district-council/leeds,Leeds City Council,31/05/2020,Resources and Housing,HRA Housing Leeds,Capital,Other Costs,7,07/05/2020,0520-00045,0.00,80.00,C,REDACTED PERSONAL DATA,No
Http://opendatacommunities.org/id/metropolitan-district-council/leeds,Leeds City Council,31/05/2020,Children and Families,Social Care,Third Party Payments,Services Rendered By Other Organisations,511,01/05/2020,0520-00046,0.00,630.72,R,REDACTED PERSONAL DATA,No
Http://opendatacommunities.org/id/metropolitan-district-council/leeds,Leeds City Council,31/05/2020,Children and Families,Social Care,Third Party Payments,Services Rendered By Other Organisations,511,06/05/2020,0520-00047,0.00,570.24,R,REDACTED PERSONAL DATA,No
Http://opendatacommunities.org/id/metropolitan-district-council/leeds,Leeds City Council,31/05/2020,City Development,Libraries  Arts & Heritage,Supplies and Services,Other Hired And Contracted Services,265,06/05/2020,0520-00048,0.00,5328.75,R,A G Design Studio,No
Http://opendatacommunities.org/id/metropolitan-district-council/leeds,Leeds City Council,31/05/2020,Children and Families,Social Care,Third Party Payments,Services Rendered By Other Organisations,511,01/05/2020,0520-00049,0.00,478.30,R,REDACTED PERSONAL DATA,No
Http://opendatacommunities.org/id/metropolitan-district-council/leeds,Leeds City Council,31/05/2020,City Development,Libraries  Arts & Heritage,Income,Admissions  Booking Fees & Ticket Sales,933,04/05/2020,0520-00050,0.00,17.72,R,REDACTED PERSONAL DATA,No
Http://opendatacommunities.org/id/metropolitan-district-council/leeds,Leeds City Council,31/05/2020,Children and Families,Social Care,Third Party Payments,Services Rendered By Other Organisations,511,01/05/2020,0520-00051,0.00,315.36,R,REDACTED PERSONAL DATA,No
Http://opendatacommunities.org/id/metropolitan-district-council/leeds,Leeds City Council,31/05/2020,Children and Families,Social Care,Third Party Payments,Services Rendered By Other Organisations,511,06/05/2020,0520-00052,0.00,190.08,R,REDACTED PERSONAL DATA,No
Http://opendatacommunities.org/id/metropolitan-district-council/leeds,Leeds City Council,31/05/2020,Children and Families,Social Care,Third Party Payments,Services Rendered By Other Organisations,511,01/05/2020,0520-00053,0.00,157.68,R,REDACTED PERSONAL DATA,No
Http://opendatacommunities.org/id/metropolitan-district-council/leeds,Leeds City Council,31/05/2020,Adults and Health,Other Generic Services,Third Party Payments,Fees To Carers,563,15/05/2020,0520-00054,0.00,264.07,R,REDACTED PERSONAL DATA,No
Http://opendatacommunities.org/id/metropolitan-district-council/leeds,Leeds City Council,31/05/2020,Adults and Health,Other Generic Services,Third Party Payments,Fees To Carers,563,15/05/2020,0520-00055,0.00,31.50,R,REDACTED PERSONAL DATA,No
Http://opendatacommunities.org/id/metropolitan-district-council/leeds,Leeds City Council,31/05/2020,City Development,Libraries  Arts & Heritage,Income,Admissions  Booking Fees & Ticket Sales,933,07/05/2020,0520-00056,0.00,14.40,R,REDACTED PERSONAL DATA,No
Http://opendatacommunities.org/id/metropolitan-district-council/leeds,Leeds City Council,31/05/2020,Resources and Housing,Leeds Building Services,Supplies and Services,Other Hired And Contracted Services,265,04/05/2020,0520-00057,0.00,150.00,R,A J H  Pump Supply & Repair Ltd,No
Http://opendatacommunities.org/id/metropolitan-district-council/leeds,Leeds City Council,31/05/2020,Resources and Housing,Leeds Building Services,Supplies and Services,Operational Materials,205,04/05/2020,0520-00058,0.00,750.00,R,A J H  Pump Supply & Repair Ltd,No
Http://opendatacommunities.org/id/metropolitan-district-council/leeds,Leeds City Council,31/05/2020,Resources and Housing,Leeds Building Services,Supplies and Services,Operational Materials,205,04/05/2020,0520-00059,0.00,137.50,R,A J H  Pump Supply & Repair Ltd,No
Http://opendatacommunities.org/id/metropolitan-district-council/leeds,Leeds City Council,31/05/2020,Resources and Housing,Leeds Building Services,Supplies and Services,Operational Materials,205,04/05/2020,0520-00060,0.00,121.65,R,A J H  Pump Supply & Repair Ltd,No
Http://opendatacommunities.org/id/metropolitan-district-council/leeds,Leeds City Council,31/05/2020,Resources and Housing,Leeds Building Services,Supplies and Services,Operational Materials,205,04/05/2020,0520-00061,0.00,28.44,R,A J H  Pump Supply & Repair Ltd,No
Http://opendatacommunities.org/id/metropolitan-district-council/leeds,Leeds City Council,31/05/2020,Resources and Housing,Leeds Building Services,Supplies and Services,Operational Materials,205,04/05/2020,0520-00062,0.00,11.90,R,A J H  Pump Supply & Repair Ltd,No
Http://opendatacommunities.org/id/metropolitan-district-council/leeds,Leeds City Council,31/05/2020,Resources and Housing,Leeds Building Services,Supplies and Services,Operational Materials,205,04/05/2020,0520-00063,0.00,301.75,R,A J H  Pump Supply & Repair Ltd,No
Http://opendatacommunities.org/id/metropolitan-district-council/leeds,Leeds City Council,31/05/2020,Resources and Housing,Leeds Building Services,Supplies and Services,Operational Materials,205,04/05/2020,0520-00064,0.00,116.48,R,A J H  Pump Supply & Repair Ltd,No
Http://opendatacommunities.org/id/metropolitan-district-council/leeds,Leeds City Council,31/05/2020,Resources and Housing,Leeds Building Services,Supplies and Services,Operational Materials,205,04/05/2020,0520-00065,0.00,73.13,R,A J H  Pump Supply & Repair Ltd,No
Http://opendatacommunities.org/id/metropolitan-district-council/leeds,Leeds City Council,31/05/2020,Resources and Housing,Leeds Building Services,Supplies and Services,Operational Materials,205,04/05/2020,0520-00066,0.00,33.77,R,A J H  Pump Supply & Repair Ltd,No
Http://opendatacommunities.org/id/metropolitan-district-council/leeds,Leeds City Council,31/05/2020,Resources and Housing,Leeds Building Services,Supplies and Services,Operational Materials,205,04/05/2020,0520-00067,0.00,31.95,R,A J H  Pump Supply & Repair Ltd,No
Http://opendatacommunities.org/id/metropolitan-district-council/leeds,Leeds City Council,31/05/2020,Resources and Housing,Leeds Building Services,Supplies and Services,Operational Materials,205,04/05/2020,0520-00068,0.00,19.45,R,A J H  Pump Supply & Repair Ltd,No
Http://opendatacommunities.org/id/metropolitan-district-council/leeds,Leeds City Council,31/05/2020,Resources and Housing,Leeds Building Services,Supplies and Services,Operational Materials,205,04/05/2020,0520-00069,0.00,35.80,R,A J H  Pump Supply & Repair Ltd,No
Http://opendatacommunities.org/id/metropolitan-district-council/leeds,Leeds City Council,31/05/2020,Resources and Housing,Leeds Building Services,Supplies and Services,Operational Materials,205,04/05/2020,0520-00070,0.00,557.37,R,A J H  Pump Supply & Repair Ltd,No
Http://opendatacommunities.org/id/metropolitan-district-council/leeds,Leeds City Council,31/05/2020,Resources and Housing,Leeds Building Services,Supplies and Services,Operational Materials,205,04/05/2020,0520-00071,0.00,348.38,R,A J H  Pump Supply & Repair Ltd,No
Http://opendatacommunities.org/id/metropolitan-district-council/leeds,Leeds City Council,31/05/2020,Resources and Housing,Leeds Building Services,Supplies and Services,Operational Materials,205,04/05/2020,0520-00072,0.00,107.54,R,A J H  Pump Supply & Repair Ltd,No
Http://opendatacommunities.org/id/metropolitan-district-council/leeds,Leeds City Council,31/05/2020,Resources and Housing,Leeds Building Services,Supplies and Services,Operational Materials,205,04/05/2020,0520-00073,0.00,393.60,R,A J H  Pump Supply & Repair Ltd,No
Http://opendatacommunities.org/id/metropolitan-district-council/leeds,Leeds City Council,31/05/2020,Resources and Housing,Leeds Building Services,Supplies and Services,Operational Materials,205,04/05/2020,0520-00074,0.00,46.00,R,A J H  Pump Supply & Repair Ltd,No
Http://opendatacommunities.org/id/metropolitan-district-council/leeds,Leeds City Council,31/05/2020,Resources and Housing,Leeds Building Services,Supplies and Services,Other Hired And Contracted Services,265,11/05/2020,0520-00075,0.00,487.00,R,A J H  Pump Supply & Repair Ltd,No
Http://opendatacommunities.org/id/metropolitan-district-council/leeds,Leeds City Council,31/05/2020,Resources and Housing,Leeds Building Services,Supplies and Services,Other Hired And Contracted Services,265,11/05/2020,0520-00076,0.00,420.00,R,A J H  Pump Supply & Repair Ltd,No
Http://opendatacommunities.org/id/metropolitan-district-council/leeds,Leeds City Council,31/05/2020,Resources and Housing,Leeds Building Services,Supplies and Services,Operational Materials,205,19/05/2020,0520-00077,0.00,185.00,R,A J H  Pump Supply & Repair Ltd,No
Http://opendatacommunities.org/id/metropolitan-district-council/leeds,Leeds City Council,31/05/2020,Resources and Housing,Leeds Building Services,Supplies and Services,Operational Materials,205,19/05/2020,0520-00078,0.00,172.90,R,A J H  Pump Supply & Repair Ltd,No
Http://opendatacommunities.org/id/metropolitan-district-council/leeds,Leeds City Council,31/05/2020,Resources and Housing,Leeds Building Services,Supplies and Services,Operational Materials,205,19/05/2020,0520-00079,0.00,27.67,R,A J H  Pump Supply & Repair Ltd,No
Http://opendatacommunities.org/id/metropolitan-district-council/leeds,Leeds City Council,31/05/2020,Resources and Housing,Leeds Building Services,Supplies and Services,Operational Materials,205,19/05/2020,0520-00080,0.00,47.62,R,A J H  Pump Supply & Repair Ltd,No
Http://opendatacommunities.org/id/metropolitan-district-council/leeds,Leeds City Council,31/05/2020,Resources and Housing,Leeds Building Services,Supplies and Services,Operational Materials,205,19/05/2020,0520-00081,0.00,100.40,R,A J H  Pump Supply & Repair Ltd,No
Http://opendatacommunities.org/id/metropolitan-district-council/leeds,Leeds City Council,31/05/2020,Resources and Housing,Leeds Building Services,Supplies and Services,Operational Materials,205,19/05/2020,0520-00082,0.00,20.86,R,A J H  Pump Supply & Repair Ltd,No
Http://opendatacommunities.org/id/metropolitan-district-council/leeds,Leeds City Council,31/05/2020,Resources and Housing,Leeds Building Services,Supplies and Services,Operational Materials,205,19/05/2020,0520-00083,0.00,57.92,R,A J H  Pump Supply & Repair Ltd,No
Http://opendatacommunities.org/id/metropolitan-district-council/leeds,Leeds City Council,31/05/2020,Resources and Housing,Leeds Building Services,Supplies and Services,Operational Materials,205,19/05/2020,0520-00084,0.00,102.53,R,A J H  Pump Supply & Repair Ltd,No
Http://opendatacommunities.org/id/metropolitan-district-council/leeds,Leeds City Council,31/05/2020,Resources and Housing,Leeds Building Services,Supplies and Services,Operational Materials,205,19/05/2020,0520-00085,0.00,34.58,R,A J H  Pump Supply & Repair Ltd,No
Http://opendatacommunities.org/id/metropolitan-district-council/leeds,Leeds City Council,31/05/2020,Resources and Housing,Leeds Building Services,Supplies and Services,Operational Materials,205,19/05/2020,0520-00086,0.00,196.90,R,A J H  Pump Supply & Repair Ltd,No
Http://opendatacommunities.org/id/metropolitan-district-council/leeds,Leeds City Council,31/05/2020,Resources and Housing,Leeds Building Services,Supplies and Services,Operational Materials,205,19/05/2020,0520-00087,0.00,184.60,R,A J H  Pump Supply & Repair Ltd,No
Http://opendatacommunities.org/id/metropolitan-district-council/leeds,Leeds City Council,31/05/2020,Resources and Housing,Leeds Building Services,Supplies and Services,Operational Materials,205,19/05/2020,0520-00088,0.00,20.25,R,A J H  Pump Supply & Repair Ltd,No
Http://opendatacommunities.org/id/metropolitan-district-council/leeds,Leeds City Council,31/05/2020,Resources and Housing,Leeds Building Services,Supplies and Services,Operational Materials,205,19/05/2020,0520-00089,0.00,37.35,R,A J H  Pump Supply & Repair Ltd,No
Http://opendatacommunities.org/id/metropolitan-district-council/leeds,Leeds City Council,31/05/2020,Resources and Housing,Leeds Building Services,Supplies and Services,Operational Materials,205,19/05/2020,0520-00090,0.00,90.72,R,A J H  Pump Supply & Repair Ltd,No
Http://opendatacommunities.org/id/metropolitan-district-council/leeds,Leeds City Council,31/05/2020,Resources and Housing,Leeds Building Services,Supplies and Services,Operational Materials,205,19/05/2020,0520-00091,0.00,23.45,R,A J H  Pump Supply & Repair Ltd,No
Http://opendatacommunities.org/id/metropolitan-district-council/leeds,Leeds City Council,31/05/2020,Resources and Housing,Leeds Building Services,Supplies and Services,Operational Materials,205,19/05/2020,0520-00092,0.00,58.24,R,A J H  Pump Supply & Repair Ltd,No
Http://opendatacommunities.org/id/metropolitan-district-council/leeds,Leeds City Council,31/05/2020,Resources and Housing,Leeds Building Services,Supplies and Services,Operational Materials,205,19/05/2020,0520-00093,0.00,12.95,R,A J H  Pump Supply & Repair Ltd,No
Http://opendatacommunities.org/id/metropolitan-district-council/leeds,Leeds City Council,31/05/2020,Resources and Housing,Leeds Building Services,Supplies and Services,Operational Materials,205,21/05/2020,0520-00094,0.00,1838.00,R,A J H  Pump Supply & Repair Ltd,No
Http://opendatacommunities.org/id/metropolitan-district-council/leeds,Leeds City Council,31/05/2020,Resources and Housing,Leeds Building Services,Supplies and Services,Operational Materials,205,26/05/2020,0520-00095,0.00,27.90,R,A J H  Pump Supply & Repair Ltd,No
Http://opendatacommunities.org/id/metropolitan-district-council/leeds,Leeds City Council,31/05/2020,Resources and Housing,Leeds Building Services,Supplies and Services,Operational Materials,205,26/05/2020,0520-00096,0.00,108.25,R,A J H  Pump Supply & Repair Ltd,No
Http://opendatacommunities.org/id/metropolitan-district-council/leeds,Leeds City Council,31/05/2020,Resources and Housing,Leeds Building Services,Supplies and Services,Operational Materials,205,26/05/2020,0520-00097,0.00,94.00,R,A J H  Pump Supply & Repair Ltd,No
Http://opendatacommunities.org/id/metropolitan-district-council/leeds,Leeds City Council,31/05/2020,Resources and Housing,Leeds Building Services,Supplies and Services,Operational Materials,205,26/05/2020,0520-00098,0.00,147.00,R,A J H  Pump Supply & Repair Ltd,No
Http://opendatacommunities.org/id/metropolitan-district-council/leeds,Leeds City Council,31/05/2020,Resources and Housing,Leeds Building Services,Supplies and Services,Operational Materials,205,26/05/2020,0520-00099,0.00,330.15,R,A J H  Pump Supply & Repair Ltd,No
Http://opendatacommunities.org/id/metropolitan-district-council/leeds,Leeds City Council,31/05/2020,Resources and Housing,Leeds Building Services,Supplies and Services,Operational Materials,205,29/05/2020,0520-00100,0.00,172.95,R,A J H  Pump Supply & Repair Ltd,No
Http://opendatacommunities.org/id/metropolitan-district-council/leeds,Leeds City Council,31/05/2020,Resources and Housing,Leeds Building Services,Supplies and Services,Operational Materials,205,29/05/2020,0520-00101,0.00,151.10,R,A J H  Pump Supply & Repair Ltd,No
Http://opendatacommunities.org/id/metropolitan-district-council/leeds,Leeds City Council,31/05/2020,Resources and Housing,Strategic Housing Partnerships,Capital,Construction,3,18/05/2020,0520-00102,0.00,1799.00,C,A J Skinn,No
Http://opendatacommunities.org/id/metropolitan-district-council/leeds,Leeds City Council,31/05/2020,Resources and Housing,HRA Housing Leeds,Capital,Other Costs,7,29/05/2020,0520-00103,0.00,80.00,C,REDACTED PERSONAL DATA,No
Http://opendatacommunities.org/id/metropolitan-district-council/leeds,Leeds City Council,31/05/2020,Children and Families,Social Care,Third Party Payments,Services Rendered By Other Organisations,511,01/05/2020,0520-00104,0.00,2049.84,R,REDACTED PERSONAL DATA,No
Http://opendatacommunities.org/id/metropolitan-district-council/leeds,Leeds City Council,31/05/2020,Resources and Housing,HRA Housing Leeds,Capital,Other Costs,7,07/05/2020,0520-00105,0.00,100.00,C,REDACTED PERSONAL DATA,No
Http://opendatacommunities.org/id/metropolitan-district-council/leeds,Leeds City Council,31/05/2020,City Development,Libraries  Arts & Heritage,Income,Admissions  Booking Fees & Ticket Sales,933,14/05/2020,0520-00106,0.00,26.35,R,REDACTED PERSONAL DATA,No
Http://opendatacommunities.org/id/metropolitan-district-council/leeds,Leeds City Council,31/05/2020,Resources and Housing,HRA Housing Leeds,Capital,Other Costs,7,28/05/2020,0520-00107,0.00,100.00,C,REDACTED PERSONAL DATA,No
Http://opendatacommunities.org/id/metropolitan-district-council/leeds,Leeds City Council,31/05/2020,Communities and Environment,Customer Access,Supplies and Services,Bought In Professional Services,277,20/05/2020,0520-00108,0.00,22.50,R,A Mohammed,No
Http://opendatacommunities.org/id/metropolitan-district-council/leeds,Leeds City Council,31/05/2020,Communities and Environment,Customer Access,Supplies and Services,Bought In Professional Services,277,28/05/2020,0520-00109,0.00,18.00,R,A Musalam,No
Http://opendatacommunities.org/id/metropolitan-district-council/leeds,Leeds City Council,31/05/2020,Children and Families,Social Care,Third Party Payments,Services Rendered By Other Organisations,511,01/05/2020,0520-00110,0.00,2522.88,R,REDACTED PERSONAL DATA,No
Http://opendatacommunities.org/id/metropolitan-district-council/leeds,Leeds City Council,31/05/2020,Children and Families,Social Care,Third Party Payments,Services Rendered By Other Organisations,511,06/05/2020,0520-00111,0.00,570.24,R,REDACTED PERSONAL DATA,No
Http://opendatacommunities.org/id/metropolitan-district-council/leeds,Leeds City Council,31/05/2020,Resources and Housing,HRA Housing Leeds,Capital,Other Costs,7,14/05/2020,0520-00112,0.00,80.00,C,REDACTED PERSONAL DATA,No
Http://opendatacommunities.org/id/metropolitan-district-council/leeds,Leeds City Council,31/05/2020,Children and Families,Social Care,Third Party Payments,Services Rendered By Other Organisations,511,01/05/2020,0520-00113,0.00,331.13,R,REDACTED PERSONAL DATA,No
Http://opendatacommunities.org/id/metropolitan-district-council/leeds,Leeds City Council,31/05/2020,Communities and Environment,Parks and Countryside,Supplies and Services,Operational Materials,205,12/05/2020,0520-00114,0.00,1120.00,R,A Newton,No
Http://opendatacommunities.org/id/metropolitan-district-council/leeds,Leeds City Council,31/05/2020,Resources and Housing,HRA Housing Leeds,Capital,Other Costs,7,14/05/2020,0520-00115,0.00,80.00,C,REDACTED PERSONAL DATA,No
Http://opendatacommunities.org/id/metropolitan-district-council/leeds,Leeds City Council,31/05/2020,Resources and Housing,HRA Housing Leeds,Capital,Other Costs,7,07/05/2020,0520-00116,0.00,100.00,C,REDACTED PERSONAL DATA,No
Http://opendatacommunities.org/id/metropolitan-district-council/leeds,Leeds City Council,31/05/2020,Resources and Housing,HRA Housing Leeds,Capital,Other Costs,7,07/05/2020,0520-00117,0.00,100.00,C,REDACTED PERSONAL DATA,No
Http://opendatacommunities.org/id/metropolitan-district-council/leeds,Leeds City Council,31/05/2020,City Development,Libraries  Arts & Heritage,Income,Admissions  Booking Fees & Ticket Sales,933,12/05/2020,0520-00118,0.00,22.40,R,REDACTED PERSONAL DATA,No
Http://opendatacommunities.org/id/metropolitan-district-council/leeds,Leeds City Council,31/05/2020,Children and Families,Social Care,Third Party Payments,Services Rendered By Other Organisations,511,01/05/2020,0520-00119,0.00,157.68,R,REDACTED PERSONAL DATA,No
Http://opendatacommunities.org/id/metropolitan-district-council/leeds,Leeds City Council,31/05/2020,Children and Families,Social Care,Third Party Payments,Services Rendered By Other Organisations,511,06/05/2020,0520-00120,0.00,190.08,R,REDACTED PERSONAL DATA,No
Http://opendatacommunities.org/id/metropolitan-district-council/leeds,Leeds City Council,31/05/2020,Children and Families,Social Care,Third Party Payments,Independent Fostering Agencies,509,06/05/2020,0520-00121,0.00,1433.00,R,A Taxis,No
Http://opendatacommunities.org/id/metropolitan-district-council/leeds,Leeds City Council,31/05/2020,Children and Families,Social Care,Third Party Payments,Independent Fostering Agencies,509,27/05/2020,0520-00122,0.00,864.00,R,A Taxis,No
Http://opendatacommunities.org/id/metropolitan-district-council/leeds,Leeds City Council,31/05/2020,Children and Families,Social Care,Third Party Payments,Services Rendered By Other Organisations,511,01/05/2020,0520-00123,0.00,473.04,R,REDACTED PERSONAL DATA,No
Http://opendatacommunities.org/id/metropolitan-district-council/leeds,Leeds City Council,31/05/2020,Children and Families,Social Care,Third Party Payments,Services Rendered By Other Organisations,511,01/05/2020,0520-00124,0.00,473.04,R,REDACTED PERSONAL DATA,No
Http://opendatacommunities.org/id/metropolitan-district-council/leeds,Leeds City Council,31/05/2020,Children and Families,Social Care,Third Party Payments,Services Rendered By Other Organisations,511,01/05/2020,0520-00125,0.00,315.36,R,REDACTED PERSONAL DATA,No
Http://opendatacommunities.org/id/metropolitan-district-council/leeds,Leeds City Council,31/05/2020,Children and Families,Social Care,Third Party Payments,Placement Support,550,06/05/2020,0520-00126,0.00,80.00,R,A Wilderness Way Ltd,No
Http://opendatacommunities.org/id/metropolitan-district-council/leeds,Leeds City Council,31/05/2020,Children and Families,Social Care,Third Party Payments,General External Residential Placements,507,12/05/2020,0520-00127,0.00,33595.01,R,A Wilderness Way Ltd,No
Http://opendatacommunities.org/id/metropolitan-district-council/leeds,Leeds City Council,31/05/2020,Children and Families,Social Care,Third Party Payments,General External Residential Placements,507,13/05/2020,0520-00128,0.00,23892.01,R,A Wilderness Way Ltd,No
Http://opendatacommunities.org/id/metropolitan-district-council/leeds,Leeds City Council,31/05/2020,Children and Families,Social Care,Third Party Payments,General External Residential Placements,507,13/05/2020,0520-00129,0.00,1200.00,R,A Wilderness Way Ltd,No
Http://opendatacommunities.org/id/metropolitan-district-council/leeds,Leeds City Council,31/05/2020,Children and Families,Social Care,Third Party Payments,General External Residential Placements,507,13/05/2020,0520-00130,0.00,28785.67,R,A Wilderness Way Ltd,No
Http://opendatacommunities.org/id/metropolitan-district-council/leeds,Leeds City Council,31/05/2020,Children and Families,Social Care,Third Party Payments,General External Residential Placements,507,26/05/2020,0520-00131,0.00,23121.30,R,A Wilderness Way Ltd,No
Http://opendatacommunities.org/id/metropolitan-district-council/leeds,Leeds City Council,31/05/2020,Resources and Housing,Leeds Building Services,Supplies and Services,Operational Materials,205,07/05/2020,0520-00132,0.00,112.95,R,A1 Stair Lift Services,No
Http://opendatacommunities.org/id/metropolitan-district-council/leeds,Leeds City Council,31/05/2020,Resources and Housing,Leeds Building Services,Supplies and Services,Operational Materials,205,07/05/2020,0520-00133,0.00,450.00,R,A1 Stair Lift Services,No
Http://opendatacommunities.org/id/metropolitan-district-council/leeds,Leeds City Council,31/05/2020,Children and Families,Social Care,Transfer Payments,Leaving Care Allowances,634,29/05/2020,0520-00134,0.00,50.00,R,REDACTED PERSONAL DATA,No
Http://opendatacommunities.org/id/metropolitan-district-council/leeds,Leeds City Council As Accountable Body,31/05/2020,Social Services Pooled Budgets,Leeds Community Equip Store Pooled Budgt,Supplies and Services,Other Equipment,203,01/05/2020,0520-00135,0.00,249.00,R,Aat (Gb) Ltd,No
Http://opendatacommunities.org/id/metropolitan-district-council/leeds,Leeds City Council,31/05/2020,Children and Families,Social Care,Third Party Payments,Allowances,546,13/05/2020,0520-00136,0.00,2046.33,R,ABBIE OMAHONY/HELEN WHITEHEAD,No
Http://opendatacommunities.org/id/metropolitan-district-council/leeds,Leeds City Council,31/05/2020,Children and Families,Social Care,Third Party Payments,Services Rendered By Other Organisations,511,01/05/2020,0520-00137,0.00,6866.28,R,Abc Daycare And Ozone Out Of School,No
Http://opendatacommunities.org/id/metropolitan-district-council/leeds,Leeds City Council,31/05/2020,Children and Families,Social Care,Third Party Payments,Services Rendered By Other Organisations,511,06/05/2020,0520-00138,0.00,950.40,R,Abc Daycare And Ozone Out Of School,No
Http://opendatacommunities.org/id/metropolitan-district-council/leeds,Leeds City Council,31/05/2020,Children and Families,Social Care,Third Party Payments,Services Rendered By Other Organisations,511,01/05/2020,0520-00139,0.00,7726.32,R,Abc Nursery At Lufc,No
Http://opendatacommunities.org/id/metropolitan-district-council/leeds,Leeds City Council,31/05/2020,Children and Families,Social Care,Third Party Payments,Services Rendered By Other Organisations,511,01/05/2020,0520-00140,0.00,5361.12,R,Abc@D'S Childcare,No
Http://opendatacommunities.org/id/metropolitan-district-council/leeds,Leeds City Council,31/05/2020,Children and Families,Social Care,Third Party Payments,Services Rendered By Other Organisations,511,06/05/2020,0520-00141,0.00,1520.64,R,Abc@D'S Childcare,No
Http://opendatacommunities.org/id/metropolitan-district-council/leeds,Leeds City Council,31/05/2020,Resources and Housing,Sustainable Energy & Climate Change,Capital,Other Costs,7,29/05/2020,0520-00142,0.00,1500.00,C,REDACTED COMMERCIAL CONFIDENTIALITY,No
Http://opendatacommunities.org/id/metropolitan-district-council/leeds,Leeds City Council,31/05/2020,Communities and Environment,Customer Access,Supplies and Services,Bought In Professional Services,277,01/05/2020,0520-00143,0.00,18.00,R,Abdul Kalam,No
Http://opendatacommunities.org/id/metropolitan-district-council/leeds,Leeds City Council,31/05/2020,Communities and Environment,Customer Access,Supplies and Services,Bought In Professional Services,277,01/05/2020,0520-00144,0.00,18.00,R,Abdul Kalam,No
Http://opendatacommunities.org/id/metropolitan-district-council/leeds,Leeds City Council,31/05/2020,Communities and Environment,Customer Access,Supplies and Services,Bought In Professional Services,277,01/05/2020,0520-00145,0.00,18.00,R,Abdul Kalam,No
Http://opendatacommunities.org/id/metropolitan-district-council/leeds,Leeds City Council,31/05/2020,Communities and Environment,Customer Access,Supplies and Services,Bought In Professional Services,277,06/05/2020,0520-00146,0.00,18.00,R,Abdul Kalam,No
Http://opendatacommunities.org/id/metropolitan-district-council/leeds,Leeds City Council,31/05/2020,Communities and Environment,Customer Access,Supplies and Services,Bought In Professional Services,277,06/05/2020,0520-00147,0.00,18.00,R,Abdul Kalam,No
Http://opendatacommunities.org/id/metropolitan-district-council/leeds,Leeds City Council,31/05/2020,Communities and Environment,Customer Access,Supplies and Services,Bought In Professional Services,277,14/05/2020,0520-00148,0.00,18.00,R,Abdul Kalam,No
Http://opendatacommunities.org/id/metropolitan-district-council/leeds,Leeds City Council,31/05/2020,Communities and Environment,Customer Access,Supplies and Services,Bought In Professional Services,277,14/05/2020,0520-00149,0.00,22.50,R,Abdul Kalam,No
Http://opendatacommunities.org/id/metropolitan-district-council/leeds,Leeds City Council,31/05/2020,Communities and Environment,Customer Access,Supplies and Services,Bought In Professional Services,277,20/05/2020,0520-00150,0.00,18.00,R,Abdul Kalam,No
Http://opendatacommunities.org/id/metropolitan-district-council/leeds,Leeds City Council,31/05/2020,Communities and Environment,Customer Access,Supplies and Services,Bought In Professional Services,277,20/05/2020,0520-00151,0.00,40.50,R,Abdul Kalam,No
Http://opendatacommunities.org/id/metropolitan-district-council/leeds,Leeds City Council,31/05/2020,Communities and Environment,Customer Access,Supplies and Services,Bought In Professional Services,277,20/05/2020,0520-00152,0.00,18.00,R,Abdul Kalam,No
Http://opendatacommunities.org/id/metropolitan-district-council/leeds,Leeds City Council,31/05/2020,Communities and Environment,Customer Access,Supplies and Services,Bought In Professional Services,277,20/05/2020,0520-00153,0.00,18.00,R,Abdul Kalam,No
Http://opendatacommunities.org/id/metropolitan-district-council/leeds,Leeds City Council,31/05/2020,Communities and Environment,Customer Access,Supplies and Services,Bought In Professional Services,277,28/05/2020,0520-00154,0.00,18.00,R,Abdul Kalam,No
Http://opendatacommunities.org/id/metropolitan-district-council/leeds,Leeds City Council,31/05/2020,Communities and Environment,Customer Access,Supplies and Services,Bought In Professional Services,277,28/05/2020,0520-00155,0.00,18.00,R,Abdul Kalam,No
Http://opendatacommunities.org/id/metropolitan-district-council/leeds,Leeds City Council,31/05/2020,Communities and Environment,Customer Access,Supplies and Services,Bought In Professional Services,277,06/05/2020,0520-00156,0.00,18.00,R,Abdulahad Denha,No
Http://opendatacommunities.org/id/metropolitan-district-council/leeds,Leeds City Council,31/05/2020,Communities and Environment,Customer Access,Supplies and Services,Bought In Professional Services,277,14/05/2020,0520-00157,0.00,22.50,R,Abdulahad Denha,No
Http://opendatacommunities.org/id/metropolitan-district-council/leeds,Leeds City Council,31/05/2020,Communities and Environment,Customer Access,Supplies and Services,Bought In Professional Services,277,20/05/2020,0520-00158,0.00,20.40,R,Abdulahad Denha,No
Http://opendatacommunities.org/id/metropolitan-district-council/leeds,Leeds City Council,31/05/2020,Communities and Environment,Customer Access,Supplies and Services,Bought In Professional Services,277,20/05/2020,0520-00159,0.00,9.00,R,Abdulahad Denha,No
Http://opendatacommunities.org/id/metropolitan-district-council/leeds,Leeds City Council,31/05/2020,Adults and Health,Social Services Support Services,Employees,Training & Development,70,20/05/2020,0520-00160,0.00,13.00,R,REDACTED PERSONAL DATA,No
Http://opendatacommunities.org/id/metropolitan-district-council/leeds,Leeds City Council,31/05/2020,Children and Families,Social Care,Transfer Payments,Leaving Care Allowances,634,06/05/2020,0520-00161,0.00,58.00,R,REDACTED PERSONAL DATA,No
Http://opendatacommunities.org/id/metropolitan-district-council/leeds,Leeds City Council,31/05/2020,Children and Families,Social Care,Transfer Payments,Leaving Care Allowances,634,13/05/2020,0520-00162,0.00,50.00,R,REDACTED PERSONAL DATA,No
Http://opendatacommunities.org/id/metropolitan-district-council/leeds,Leeds City Council,31/05/2020,Communities and Environment,Parks and Countryside,Supplies and Services,Non-Recurring Grants,227,07/05/2020,0520-00163,0.00,550.00,R,Aberford And District Parish Council,No
Http://opendatacommunities.org/id/metropolitan-district-council/leeds,Leeds City Council,31/05/2020,Adults and Health,Services For Older People - 65 And Over,Third Party Payments,Nursing Home,570,04/05/2020,0520-00164,0.00,4401.67,R,Aberford Hall,No
Http://opendatacommunities.org/id/metropolitan-district-council/leeds,Leeds City Council,31/05/2020,Adults and Health,Services For Older People - 65 And Over,Third Party Payments,Nursing Home,570,27/05/2020,0520-00165,0.00,37190.03,R,Aberford Hall,No
Http://opendatacommunities.org/id/metropolitan-district-council/leeds,Leeds City Council,31/05/2020,Resources and Housing,Leeds Building Services,Supplies and Services,Operational Materials,205,06/05/2020,0520-00166,0.00,3630.00,R,Abi Garage Doors Ltd,No
Http://opendatacommunities.org/id/metropolitan-district-council/leeds,Leeds City Council,31/05/2020,Resources and Housing,Leeds Building Services,Supplies and Services,Operational Materials,205,21/05/2020,0520-00167,0.00,281.04,R,Abi Garage Doors Ltd,No
Http://opendatacommunities.org/id/metropolitan-district-council/leeds,Leeds City Council,31/05/2020,Resources and Housing,Leeds Building Services,Supplies and Services,Operational Materials,205,21/05/2020,0520-00168,0.00,10.00,R,Abi Garage Doors Ltd,No
Http://opendatacommunities.org/id/metropolitan-district-council/leeds,Leeds City Council,31/05/2020,Resources and Housing,Leeds Building Services,Supplies and Services,Operational Materials,205,21/05/2020,0520-00169,0.00,10.82,R,Abi Garage Doors Ltd,No
Http://opendatacommunities.org/id/metropolitan-district-council/leeds,Leeds City Council,31/05/2020,Children and Families,Social Care,Third Party Payments,Placement Support,550,01/05/2020,0520-00170,0.00,27.00,R,REDACTED PERSONAL DATA,No
Http://opendatacommunities.org/id/metropolitan-district-council/leeds,Leeds City Council,31/05/2020,Children and Families,Social Care,Third Party Payments,Contact,548,07/05/2020,0520-00171,0.00,23.05,R,REDACTED PERSONAL DATA,No
Http://opendatacommunities.org/id/metropolitan-district-council/leeds,Leeds City Council,31/05/2020,Children and Families,Social Care  ,Supplies and Services,Bedding & Linen,222,15/04/2020,0520-00172,0.00,106.49,R,Absolute,Yes
Http://opendatacommunities.org/id/metropolitan-district-council/leeds,Leeds City Council,31/05/2020,Resources and Housing,Strategic Housing Partnership & Support,Supplies and Services,Other Hired And Contracted Services,265,26/05/2020,0520-00173,0.00,1100.00,R,Absolute Agents Ltd,No
Http://opendatacommunities.org/id/metropolitan-district-council/leeds,Leeds City Council,31/05/2020,Children and Families,Social Care,Supplies and Services,Advertising,211,13/05/2020,0520-00174,0.00,155.00,R,Ac Winter,No
Http://opendatacommunities.org/id/metropolitan-district-council/leeds,Leeds City Council,31/05/2020,Adults and Health,Services For Older People - 65 And Over,Third Party Payments,Home Care,568,20/05/2020,0520-00175,0.00,2547.20,R,Academy Care Ltd,No
Http://opendatacommunities.org/id/metropolitan-district-council/leeds,Leeds City Council,31/05/2020,Communities and Environment,Communities,Supplies and Services,'Well Being' Large Grants Projects,230,04/05/2020,0520-00176,0.00,1878.46,R,Acamps,No
Http://opendatacommunities.org/id/metropolitan-district-council/leeds,Leeds City Council,31/05/2020,Communities and Environment,Community Safety,Transport,Hire Of Movable Plant & Machinery,315,12/05/2020,0520-00177,0.00,1388.57,R,Access Hire Nationwide Ltd,No
Http://opendatacommunities.org/id/metropolitan-district-council/leeds,Leeds City Council,31/05/2020,Resources and Housing,Commercial Services  ,Supplies and Services,Operational Materials,205,22/04/2020,0520-00178,0.00,535.90,R,Access Locksmiths,Yes
Http://opendatacommunities.org/id/metropolitan-district-council/leeds,Leeds City Council,31/05/2020,Resources and Housing,Commercial Services  ,Supplies and Services,Operational Materials,205,22/04/2020,0520-00179,0.00,140.50,R,Access Locksmiths,Yes
Http://opendatacommunities.org/id/metropolitan-district-council/leeds,Leeds City Council,31/05/2020,Resources and Housing,Leeds Building Services,Supplies and Services,Operational Materials,205,26/05/2020,0520-00180,0.00,57.46,R,Access Locksmiths (Leeds) Limited,No
Http://opendatacommunities.org/id/metropolitan-district-council/leeds,Leeds City Council,31/05/2020,Resources and Housing,Leeds Building Services,Supplies and Services,Operational Materials,205,29/05/2020,0520-00181,0.00,74.26,R,Access Locksmiths (Leeds) Limited,No
Http://opendatacommunities.org/id/metropolitan-district-council/leeds,Leeds City Council,31/05/2020,Resources and Housing,Leeds Building Services,Supplies and Services,Operational Materials,205,29/05/2020,0520-00182,0.00,419.45,R,Access Locksmiths (Leeds) Limited,No
Http://opendatacommunities.org/id/metropolitan-district-council/leeds,Leeds City Council,31/05/2020,Resources and Housing,Leeds Building Services,Supplies and Services,Operational Materials,205,29/05/2020,0520-00183,0.00,17.41,R,Access Locksmiths (Leeds) Limited,No
Http://opendatacommunities.org/id/metropolitan-district-council/leeds,Leeds City Council,31/05/2020,Resources and Housing,Leeds Building Services,Supplies and Services,Operational Materials,205,29/05/2020,0520-00184,0.00,95.48,R,Access Locksmiths (Leeds) Limited,No
Http://opendatacommunities.org/id/metropolitan-district-council/leeds,Leeds City Council,31/05/2020,Resources and Housing,Leeds Building Services,Supplies and Services,Operational Materials,205,29/05/2020,0520-00185,0.00,38.75,R,Access Locksmiths (Leeds) Limited,No
Http://opendatacommunities.org/id/metropolitan-district-council/leeds,Leeds City Council,31/05/2020,Resources and Housing,Leeds Building Services,Supplies and Services,Operational Materials,205,29/05/2020,0520-00186,0.00,36.51,R,Access Locksmiths (Leeds) Limited,No
Http://opendatacommunities.org/id/metropolitan-district-council/leeds,Leeds City Council,31/05/2020,Resources and Housing,Leeds Building Services,Supplies and Services,Operational Materials,205,29/05/2020,0520-00187,0.00,16.84,R,Access Locksmiths (Leeds) Limited,No
Http://opendatacommunities.org/id/metropolitan-district-council/leeds,Leeds City Council,31/05/2020,Resources and Housing,Leeds Building Services,Supplies and Services,Operational Materials,205,29/05/2020,0520-00188,0.00,84.74,R,Access Locksmiths (Leeds) Limited,No
Http://opendatacommunities.org/id/metropolitan-district-council/leeds,Leeds City Council,31/05/2020,Resources and Housing,Leeds Building Services,Supplies and Services,Operational Materials,205,29/05/2020,0520-00189,0.00,14.40,R,Access Locksmiths (Leeds) Limited,No
Http://opendatacommunities.org/id/metropolitan-district-council/leeds,Leeds City Council,31/05/2020,Resources and Housing,Leeds Building Services,Supplies and Services,Operational Materials,205,29/05/2020,0520-00190,0.00,9.60,R,Access Locksmiths (Leeds) Limited,No
Http://opendatacommunities.org/id/metropolitan-district-council/leeds,Leeds City Council,31/05/2020,City Development,Libraries  Arts & Heritage,Supplies and Services,Other Hired And Contracted Services,265,15/05/2020,0520-00191,0.00,46.50,R,Ace Container Services Limited,No
Http://opendatacommunities.org/id/metropolitan-district-council/leeds,Leeds City Council,31/05/2020,City Development,Recreation,Transport,External Hire -Occasional,304,15/05/2020,0520-00192,0.00,128.65,R,Ace Container Services Limited,No
Http://opendatacommunities.org/id/metropolitan-district-council/leeds,Leeds City Council,31/05/2020,City Development,Recreation,Supplies and Services,Operational Furniture And Equipment,203,18/05/2020,0520-00193,0.00,93.00,R,Ace Container Services Limited,No
Http://opendatacommunities.org/id/metropolitan-district-council/leeds,Leeds City Council,31/05/2020,Children and Families,Partnerships & Health,Third Party Payments,SEN Placements,566,29/05/2020,0520-00194,0.00,58000.00,R,Acorn Care & Education Ltd (Sales),No
Http://opendatacommunities.org/id/metropolitan-district-council/leeds,Leeds City Council,31/05/2020,Adults and Health,Services For Older People - 65 And Over,Third Party Payments,Nursing Home,570,04/05/2020,0520-00195,0.00,431.36,R,Acorn Nursing Home,No
Http://opendatacommunities.org/id/metropolitan-district-council/leeds,Leeds City Council,31/05/2020,Adults and Health,Services For Older People - 65 And Over,Third Party Payments,Residential Care Dementia,571,27/05/2020,0520-00196,0.00,1589.72,R,Acorn Nursing Home,No
Http://opendatacommunities.org/id/metropolitan-district-council/leeds,Leeds City Council,31/05/2020,Adults and Health,Services For Older People - 65 And Over,Third Party Payments,Nursing Care Dementia,574,27/05/2020,0520-00197,0.00,1720.08,R,Acorn Nursing Home,No
Http://opendatacommunities.org/id/metropolitan-district-council/leeds,Leeds City Council,31/05/2020,Children and Families,Social Care,Third Party Payments,Services Rendered By Other Organisations,511,01/05/2020,0520-00198,0.00,6622.56,R,Acorns Nursery,No
Http://opendatacommunities.org/id/metropolitan-district-council/leeds,Leeds City Council,31/05/2020,Children and Families,Social Care,Third Party Payments,Services Rendered By Other Organisations,511,06/05/2020,0520-00199,0.00,190.08,R,Acorns Nursery,No
Http://opendatacommunities.org/id/metropolitan-district-council/leeds,Leeds City Council,31/05/2020,Adults and Health,Services For Older People - 65 And Over,Third Party Payments,Nursing Home,570,04/05/2020,0520-00200,0.00,5271.90,R,Acre Green,No
Http://opendatacommunities.org/id/metropolitan-district-council/leeds,Leeds City Council,31/05/2020,Adults and Health,Services For Older People - 65 And Over,Third Party Payments,Nursing Home,570,27/05/2020,0520-00201,0.00,19841.55,R,Acre Green,No
Http://opendatacommunities.org/id/metropolitan-district-council/leeds,Leeds City Council,31/05/2020,Adults and Health,Services For Older People - 65 And Over,Third Party Payments,Residential,580,27/05/2020,0520-00202,0.00,3876.60,R,Acre Green,No
Http://opendatacommunities.org/id/metropolitan-district-council/leeds,Leeds City Council,31/05/2020,Adults and Health,Services For Older People Under 65 P/Dis,Third Party Payments,Nursing Home,570,27/05/2020,0520-00203,0.00,2360.00,R,Acre Green,No
Http://opendatacommunities.org/id/metropolitan-district-council/leeds,Leeds City Council,31/05/2020,Adults and Health,Services For Older People Under 65 P/Dis,Third Party Payments,Residential,580,27/05/2020,0520-00204,0.00,1642.60,R,Acre Green,No
Http://opendatacommunities.org/id/metropolitan-district-council/leeds,Leeds City Council,31/05/2020,Children and Families,Social Care,Third Party Payments,Services Rendered By Other Organisations,511,01/05/2020,0520-00205,0.00,10722.24,R,Acre Wood Day Nursery,No
Http://opendatacommunities.org/id/metropolitan-district-council/leeds,Leeds City Council,31/05/2020,Children and Families,Social Care,Third Party Payments,Services Rendered By Other Organisations,511,06/05/2020,0520-00206,0.00,2090.88,R,Acre Wood Day Nursery,No
Http://opendatacommunities.org/id/metropolitan-district-council/leeds,Leeds City Council,31/05/2020,Resources and Housing,Technology  ,Supplies and Services,Computer Software & Equipment,214,03/04/2020,0520-00207,0.00,7810.95,R,Acs Business Supplies Lt,Yes
Http://opendatacommunities.org/id/metropolitan-district-council/leeds,Leeds City Council,31/05/2020,Resources and Housing,Technology  ,Supplies and Services,Office Consumables,210,07/04/2020,0520-00208,0.00,716.45,R,Acs Business Supplies Lt,Yes
Http://opendatacommunities.org/id/metropolitan-district-council/leeds,Leeds City Council,31/05/2020,Resources and Housing,Leeds Building Services,Supplies and Services,Other Hired And Contracted Services,265,26/05/2020,0520-00209,0.00,70.34,R,Actavo Hire And Sales Uk Limited,No
Http://opendatacommunities.org/id/metropolitan-district-council/leeds,Leeds City Council,31/05/2020,Children and Families,Social Care,Third Party Payments,Independent Fostering Agencies,509,11/05/2020,0520-00210,0.00,3831.14,R,Action For Children Services Ltd,No
Http://opendatacommunities.org/id/metropolitan-district-council/leeds,Leeds City Council,31/05/2020,Communities and Environment,Communities,Supplies and Services,Grant Related Expenditure,290,22/05/2020,0520-00211,0.00,1000.00,R,Action For Gipton Elderly,No
Http://opendatacommunities.org/id/metropolitan-district-council/leeds,Leeds City Council,31/05/2020,Children and Families,Social Care,Third Party Payments,Services Rendered By Other Organisations,511,01/05/2020,0520-00212,0.00,6616.43,R,Active Kids Yeadon Llp,No
Http://opendatacommunities.org/id/metropolitan-district-council/leeds,Leeds City Council,31/05/2020,Children and Families,Social Care,Third Party Payments,Services Rendered By Other Organisations,511,06/05/2020,0520-00213,0.00,411.84,R,Active Kids Yeadon Llp,No
Http://opendatacommunities.org/id/metropolitan-district-council/leeds,Leeds City Council,31/05/2020,Adults and Health,Services For Older People - 65 And Over,Third Party Payments,Nursing Home,570,04/05/2020,0520-00214,0.00,493.67,R,Active Pathways,No
Http://opendatacommunities.org/id/metropolitan-district-council/leeds,Leeds City Council,31/05/2020,Adults and Health,Services For Adults Under 65 Mental/Dis,Third Party Payments,Sheltered Accommodation,569,27/05/2020,0520-00215,0.00,16197.46,R,Active Pathways,No
Http://opendatacommunities.org/id/metropolitan-district-council/leeds,Leeds City Council,31/05/2020,Adults and Health,Services For Adults Under 65 Mental/Dis,Third Party Payments,Residential,580,27/05/2020,0520-00216,0.00,-5403.70,R,Active Pathways,No
Http://opendatacommunities.org/id/metropolitan-district-council/leeds,Leeds City Council,31/05/2020,Adults and Health,Services For Older People Under 65 P/Dis,Third Party Payments,Sheltered Accommodation,569,27/05/2020,0520-00217,0.00,4263.95,R,Active Pathways,No
Http://opendatacommunities.org/id/metropolitan-district-council/leeds,Leeds City Council As Accountable Body,31/05/2020,Social Services Pooled Budgets,Jcs For People With Learning Disabilitie,Third Party Payments,Sheltered Accommodation,569,27/05/2020,0520-00218,0.00,8872.84,R,Active Pathways,No
Http://opendatacommunities.org/id/metropolitan-district-council/leeds,Leeds City Council,31/05/2020,Communities and Environment,Waste Management,Supplies and Services,Recycling & Reuse Charges,234,07/05/2020,0520-00219,0.00,1007.77,R,Acumen Waste Services Ltd,No
Http://opendatacommunities.org/id/metropolitan-district-council/leeds,Leeds City Council,31/05/2020,Communities and Environment,Waste Management,Supplies and Services,Recycling & Reuse Charges,234,13/05/2020,0520-00220,0.00,1027.66,R,Acumen Waste Services Ltd,No
Http://opendatacommunities.org/id/metropolitan-district-council/leeds,Leeds City Council,31/05/2020,Communities and Environment,Waste Management,Supplies and Services,Recycling & Reuse Charges,234,22/05/2020,0520-00221,0.00,1004.22,R,Acumen Waste Services Ltd,No
Http://opendatacommunities.org/id/metropolitan-district-council/leeds,Leeds City Council,31/05/2020,Communities and Environment,Waste Management,Supplies and Services,Recycling & Reuse Charges,234,26/05/2020,0520-00222,0.00,994.99,R,Acumen Waste Services Ltd,No
Http://opendatacommunities.org/id/metropolitan-district-council/leeds,Leeds City Council,31/05/2020,Resources and Housing,Shared Services,Supplies and Services,Other Hired And Contracted Services,265,01/05/2020,0520-00223,0.00,522.90,R,Ad3 Envelope Printers Limited,No
Http://opendatacommunities.org/id/metropolitan-district-council/leeds,Leeds City Council,31/05/2020,Resources and Housing,Shared Services,Supplies and Services,Other Hired And Contracted Services,265,01/05/2020,0520-00224,0.00,77.18,R,Ad3 Envelope Printers Limited,No
Http://opendatacommunities.org/id/metropolitan-district-council/leeds,Leeds City Council,31/05/2020,Resources and Housing,Shared Services,Supplies and Services,Operational Materials,205,01/05/2020,0520-00225,0.00,1131.75,R,Ad3 Envelope Printers Limited,No
Http://opendatacommunities.org/id/metropolitan-district-council/leeds,Leeds City Council,31/05/2020,Resources and Housing,Shared Services,Supplies and Services,Other Hired And Contracted Services,265,29/05/2020,0520-00226,0.00,642.75,R,Ad3 Envelope Printers Limited,No
Http://opendatacommunities.org/id/metropolitan-district-council/leeds,Leeds City Council,31/05/2020,Adults and Health,Social Services Support Services,Employees,Training & Development,70,01/05/2020,0520-00227,0.00,13.00,R,Adam Young,No
Http://opendatacommunities.org/id/metropolitan-district-council/leeds,Leeds City Council,31/05/2020,Adults and Health,Services For Older People - 65 And Over,Third Party Payments,Nursing Home,570,04/05/2020,0520-00228,0.00,248.00,R,Adbolton Hall,No
Http://opendatacommunities.org/id/metropolitan-district-council/leeds,Leeds City Council,31/05/2020,Adults and Health,Services For Older People - 65 And Over,Third Party Payments,Nursing Home,570,27/05/2020,0520-00229,0.00,2584.00,R,Adbolton Hall,No
Http://opendatacommunities.org/id/metropolitan-district-council/leeds,Leeds City Council,31/05/2020,Resources and Housing,Commercial Services,Transport,Vehicle Spares,345,15/05/2020,0520-00230,0.00,151.72,R,Addison Motors Limited,No
Http://opendatacommunities.org/id/metropolitan-district-council/leeds,Leeds City Council,31/05/2020,Resources and Housing,PPPU and Procurement,Supplies and Services,Other Hired And Contracted Services,265,04/05/2020,0520-00231,0.00,6700.00,R,Addleshaw Goddard Llp,No
Http://opendatacommunities.org/id/metropolitan-district-council/leeds,Leeds City Council,31/05/2020,Resources and Housing,HRA Housing Leeds,Capital,Other Costs,7,05/05/2020,0520-00232,0.00,3236.70,C,Addleshaw Goddard Llp,No
Http://opendatacommunities.org/id/metropolitan-district-council/leeds,Leeds City Council,31/05/2020,Resources and Housing,Technology  ,Employees,Agency Staff,8,02/04/2020,0520-00233,0.00,31221.20,R,Adecco Alfred Marks,Yes
Http://opendatacommunities.org/id/metropolitan-district-council/leeds,Leeds City Council,31/05/2020,Resources and Housing,Technology  ,Employees,Agency Staff,8,15/04/2020,0520-00234,0.00,39084.05,R,Adecco Alfred Marks,Yes
Http://opendatacommunities.org/id/metropolitan-district-council/leeds,Leeds City Council,31/05/2020,Resources and Housing,Technology  ,Employees,Agency Staff,8,24/04/2020,0520-00235,0.00,7897.05,R,Adecco Alfred Marks,Yes
Http://opendatacommunities.org/id/metropolitan-district-council/leeds,Leeds City Council,31/05/2020,Children and Families,Social Care,Third Party Payments,Services Rendered By Voluntary Sector,505,01/05/2020,0520-00236,0.00,6710.16,R,Adel Pre School,No
Http://opendatacommunities.org/id/metropolitan-district-council/leeds,Leeds City Council,31/05/2020,Children and Families,Social Care,Third Party Payments,Services Rendered By Voluntary Sector,505,06/05/2020,0520-00237,0.00,1520.64,R,Adel Pre School,No
Http://opendatacommunities.org/id/metropolitan-district-council/leeds,Leeds City Council,31/05/2020,Children and Families,Social Care,Third Party Payments,Services Rendered By Other Organisations,511,06/05/2020,0520-00238,0.00,380.16,R,REDACTED PERSONAL DATA,No
Http://opendatacommunities.org/id/metropolitan-district-council/leeds,Leeds City Council,31/05/2020,Children and Families,Social Care,Third Party Payments,Services Rendered By Other Organisations,511,01/05/2020,0520-00239,0.00,452.02,R,REDACTED PERSONAL DATA,No
Http://opendatacommunities.org/id/metropolitan-district-council/leeds,Leeds City Council,31/05/2020,Resources and Housing,Leeds Building Services,Supplies and Services,Operational Materials,205,01/05/2020,0520-00240,0.00,10.76,R,Adi Global,No
Http://opendatacommunities.org/id/metropolitan-district-council/leeds,Leeds City Council,31/05/2020,Resources and Housing,Leeds Building Services,Supplies and Services,Operational Materials,205,01/05/2020,0520-00241,0.00,124.00,R,Adi Global,No
Http://opendatacommunities.org/id/metropolitan-district-council/leeds,Leeds City Council,31/05/2020,Resources and Housing,Leeds Building Services,Supplies and Services,Operational Materials,205,01/05/2020,0520-00242,0.00,1043.09,R,Adi Global,No
Http://opendatacommunities.org/id/metropolitan-district-council/leeds,Leeds City Council,31/05/2020,Resources and Housing,Leeds Building Services,Supplies and Services,Operational Materials,205,05/05/2020,0520-00243,0.00,431.34,R,Adi Global,No
Http://opendatacommunities.org/id/metropolitan-district-council/leeds,Leeds City Council,31/05/2020,Resources and Housing,Leeds Building Services,Supplies and Services,Operational Materials,205,21/05/2020,0520-00244,0.00,138.16,R,Adi Global,No
Http://opendatacommunities.org/id/metropolitan-district-council/leeds,Leeds City Council,31/05/2020,Resources and Housing,Leeds Building Services,Supplies and Services,Operational Materials,205,21/05/2020,0520-00245,0.00,508.56,R,Adi Global,No
Http://opendatacommunities.org/id/metropolitan-district-council/leeds,Leeds City Council,31/05/2020,Resources and Housing,Leeds Building Services,Supplies and Services,Operational Materials,205,21/05/2020,0520-00246,0.00,648.20,R,Adi Global,No
Http://opendatacommunities.org/id/metropolitan-district-council/leeds,Leeds City Council,31/05/2020,Resources and Housing,Leeds Building Services,Supplies and Services,Operational Materials,205,21/05/2020,0520-00247,0.00,177.20,R,Adi Global,No
Http://opendatacommunities.org/id/metropolitan-district-council/leeds,Leeds City Council,31/05/2020,Resources and Housing,Leeds Building Services,Supplies and Services,Operational Materials,205,21/05/2020,0520-00248,0.00,177.20,R,Adi Global,No
Http://opendatacommunities.org/id/metropolitan-district-council/leeds,Leeds City Council,31/05/2020,Resources and Housing,Leeds Building Services,Supplies and Services,Operational Materials,205,21/05/2020,0520-00249,0.00,48.08,R,Adi Global,No
Http://opendatacommunities.org/id/metropolitan-district-council/leeds,Leeds City Council,31/05/2020,Resources and Housing,Leeds Building Services,Supplies and Services,Operational Materials,205,21/05/2020,0520-00250,0.00,36.97,R,Adi Global,No
Http://opendatacommunities.org/id/metropolitan-district-council/leeds,Leeds City Council,31/05/2020,Resources and Housing,Leeds Building Services,Supplies and Services,Operational Materials,205,26/05/2020,0520-00251,0.00,2152.39,R,Adi Global,No
Http://opendatacommunities.org/id/metropolitan-district-council/leeds,Leeds City Council,31/05/2020,Resources and Housing,Leeds Building Services,Supplies and Services,Operational Materials,205,29/05/2020,0520-00252,0.00,1025.03,R,Adi Global,No
Http://opendatacommunities.org/id/metropolitan-district-council/leeds,Leeds City Council,31/05/2020,Resources and Housing,Leeds Building Services,Supplies and Services,Operational Materials,205,29/05/2020,0520-00253,0.00,301.95,R,Adi Global,No
Http://opendatacommunities.org/id/metropolitan-district-council/leeds,Leeds City Council,31/05/2020,Resources and Housing,Sustainable Energy & Climate Change,Capital,Other Costs,7,27/05/2020,0520-00254,0.00,1500.00,C,REDACTED COMMERCIAL CONFIDENTIALITY,No
Http://opendatacommunities.org/id/metropolitan-district-council/leeds,Leeds City Council,31/05/2020,Children and Families,Social Care  ,Premises,Cleaning Maintenance & Toiletries,127,31/03/2020,0520-00255,0.00,576.84,R,Admiral Cleaning Suppl,Yes
Http://opendatacommunities.org/id/metropolitan-district-council/leeds,Leeds City Council,31/05/2020,Resources and Housing,Sustainable Energy & Climate Change,Capital,Other Costs,7,27/05/2020,0520-00256,0.00,1500.00,C,REDACTED COMMERCIAL CONFIDENTIALITY,No
Http://opendatacommunities.org/id/metropolitan-district-council/leeds,Leeds City Council,31/05/2020,City Development,Libraries  Arts & Heritage  ,Supplies and Services,Computer Software & Equipment,214,02/04/2020,0520-00257,0.00,9.98,R,Adobe Photogphy Plan,Yes
Http://opendatacommunities.org/id/metropolitan-district-council/leeds,Leeds City Council,31/05/2020,Children and Families,Social Care,Third Party Payments,Independent Fostering Agencies,509,19/05/2020,0520-00258,0.00,288.40,R,Adolescent And Childrens Trust,No
Http://opendatacommunities.org/id/metropolitan-district-council/leeds,Leeds City Council,31/05/2020,Children and Families,Social Care,Third Party Payments,Independent Fostering Agencies,509,22/05/2020,0520-00259,0.00,3390.00,R,Adolescent And Childrens Trust,No
Http://opendatacommunities.org/id/metropolitan-district-council/leeds,Leeds City Council,31/05/2020,Children and Families,Social Care,Third Party Payments,Independent Fostering Agencies,509,22/05/2020,0520-00260,0.00,3570.00,R,Adolescent And Childrens Trust,No
Http://opendatacommunities.org/id/metropolitan-district-council/leeds,Leeds City Council,31/05/2020,Children and Families,Social Care,Third Party Payments,Independent Fostering Agencies,509,22/05/2020,0520-00261,0.00,3570.00,R,Adolescent And Childrens Trust,No
Http://opendatacommunities.org/id/metropolitan-district-council/leeds,Leeds City Council,31/05/2020,Children and Families,Social Care,Third Party Payments,Independent Fostering Agencies,509,22/05/2020,0520-00262,0.00,3390.00,R,Adolescent And Childrens Trust,No
Http://opendatacommunities.org/id/metropolitan-district-council/leeds,Leeds City Council,31/05/2020,Children and Families,Social Care,Third Party Payments,Independent Fostering Agencies,509,22/05/2020,0520-00263,0.00,2711.52,R,Adolescent And Childrens Trust,No
Http://opendatacommunities.org/id/metropolitan-district-council/leeds,Leeds City Council,31/05/2020,Children and Families,Social Care,Third Party Payments,Independent Fostering Agencies,509,22/05/2020,0520-00264,0.00,2023.00,R,Adolescent And Childrens Trust,No
Http://opendatacommunities.org/id/metropolitan-district-council/leeds,Leeds City Council,31/05/2020,Children and Families,Social Care,Third Party Payments,Independent Fostering Agencies,509,26/05/2020,0520-00265,0.00,3570.00,R,Adolescent And Childrens Trust,No
Http://opendatacommunities.org/id/metropolitan-district-council/leeds,Leeds City Council,31/05/2020,Children and Families,Social Care,Third Party Payments,Independent Fostering Agencies,509,26/05/2020,0520-00266,0.00,3390.00,R,Adolescent And Childrens Trust,No
Http://opendatacommunities.org/id/metropolitan-district-council/leeds,Leeds City Council,31/05/2020,Children and Families,Social Care,Third Party Payments,Independent Fostering Agencies,509,26/05/2020,0520-00267,0.00,3390.00,R,Adolescent And Childrens Trust,No
Http://opendatacommunities.org/id/metropolitan-district-council/leeds,Leeds City Council,31/05/2020,Children and Families,Social Care,Third Party Payments,Independent Fostering Agencies,509,26/05/2020,0520-00268,0.00,3390.00,R,Adolescent And Childrens Trust,No
Http://opendatacommunities.org/id/metropolitan-district-council/leeds,Leeds City Council,31/05/2020,Children and Families,Social Care,Third Party Payments,Independent Fostering Agencies,509,26/05/2020,0520-00269,0.00,3390.00,R,Adolescent And Childrens Trust,No
Http://opendatacommunities.org/id/metropolitan-district-council/leeds,Leeds City Council,31/05/2020,Children and Families,Social Care,Third Party Payments,Independent Fostering Agencies,509,26/05/2020,0520-00270,0.00,3390.00,R,Adolescent And Childrens Trust,No
Http://opendatacommunities.org/id/metropolitan-district-council/leeds,Leeds City Council As Accountable Body,31/05/2020,Social Services Pooled Budgets,Jcs For People With Learning Disabilitie,Third Party Payments,Residential,580,01/05/2020,0520-00271,0.00,2609.36,R,Adrian House,No
Http://opendatacommunities.org/id/metropolitan-district-council/leeds,Leeds City Council As Accountable Body,31/05/2020,Social Services Pooled Budgets,Jcs For People With Learning Disabilitie,Third Party Payments,Residential,580,04/05/2020,0520-00272,0.00,240.86,R,Adrian House,No
Http://opendatacommunities.org/id/metropolitan-district-council/leeds,Leeds City Council As Accountable Body,31/05/2020,Social Services Pooled Budgets,Jcs For People With Learning Disabilitie,Third Party Payments,Home Care,568,04/05/2020,0520-00273,0.00,174.21,R,Adult Placement Services,No
Http://opendatacommunities.org/id/metropolitan-district-council/leeds,Leeds City Council,31/05/2020,Resources and Housing,Corporate Property Management,Premises,Plant and Machinery,102,21/05/2020,0520-00274,0.00,370.00,R,Advanced Diesel Engineering,No
Http://opendatacommunities.org/id/metropolitan-district-council/leeds,Leeds City Council,31/05/2020,Resources and Housing,Corporate Property Management,Premises,Plant and Machinery,102,29/05/2020,0520-00275,0.00,460.00,R,Advanced Diesel Engineering,No
Http://opendatacommunities.org/id/metropolitan-district-council/leeds,Leeds City Council,31/05/2020,Resources and Housing,Strategic Housing Partnerships,Capital,Construction,3,07/05/2020,0520-00276,0.00,7330.00,C,Advent Css Limited,No
Http://opendatacommunities.org/id/metropolitan-district-council/leeds,Leeds City Council,31/05/2020,Adults and Health,Services For Older People - 65 And Over,Third Party Payments,Nursing Home,570,04/05/2020,0520-00277,0.00,2026.82,R,Advitam Ltd,No
Http://opendatacommunities.org/id/metropolitan-district-council/leeds,Leeds City Council As Accountable Body,31/05/2020,Social Services Pooled Budgets,Jcs For People With Learning Disabilitie,Third Party Payments,Residential,580,27/05/2020,0520-00278,0.00,17134.76,R,Advitam Ltd,No
Http://opendatacommunities.org/id/metropolitan-district-council/leeds,Leeds City Council,31/05/2020,Adults and Health,Services For Older People - 65 And Over,Third Party Payments,Payments To Voluntary Organisations,561,13/05/2020,0520-00279,0.00,103916.67,R,Advonet,No
Http://opendatacommunities.org/id/metropolitan-district-council/leeds,Leeds City Council As Accountable Body,31/05/2020,Social Services Pooled Budgets,Jcs For People With Learning Disabilitie,Supplies and Services,Other Hired And Contracted Services,265,21/05/2020,0520-00280,0.00,215.10,R,Advonet,No
Http://opendatacommunities.org/id/metropolitan-district-council/leeds,Leeds City Council As Accountable Body,31/05/2020,Social Services Pooled Budgets,Jcs For People With Learning Disabilitie,Supplies and Services,Other Hired And Contracted Services,265,21/05/2020,0520-00281,0.00,32.40,R,Advonet,No
Http://opendatacommunities.org/id/metropolitan-district-council/leeds,Leeds City Council As Accountable Body,31/05/2020,Social Services Pooled Budgets,Jcs For People With Learning Disabilitie,Supplies and Services,Other Hired And Contracted Services,265,22/05/2020,0520-00282,0.00,195.00,R,Advonet,No
Http://opendatacommunities.org/id/metropolitan-district-council/leeds,Leeds City Council,31/05/2020,Adults and Health,Services For Adults Under 65 Mental/Dis,Third Party Payments,Fees - Level 4,520,11/05/2020,0520-00283,0.00,200.00,R,Ae Bia Assessments Limited,No
Http://opendatacommunities.org/id/metropolitan-district-council/leeds,Leeds City Council,31/05/2020,Adults and Health,Services For Adults Under 65 Mental/Dis,Third Party Payments,Fees - Level 4,520,13/05/2020,0520-00284,0.00,200.00,R,Ae Bia Assessments Limited,No
Http://opendatacommunities.org/id/metropolitan-district-council/leeds,Leeds City Council,31/05/2020,Adults and Health,Services For Adults Under 65 Mental/Dis,Third Party Payments,Fees - Level 4,520,13/05/2020,0520-00285,0.00,200.00,R,Ae Bia Assessments Limited,No
Http://opendatacommunities.org/id/metropolitan-district-council/leeds,Leeds City Council,31/05/2020,Adults and Health,Services For Adults Under 65 Mental/Dis,Third Party Payments,Fees - Level 4,520,13/05/2020,0520-00286,0.00,200.00,R,Ae Bia Assessments Limited,No
Http://opendatacommunities.org/id/metropolitan-district-council/leeds,Leeds City Council,31/05/2020,Adults and Health,Services For Adults Under 65 Mental/Dis,Third Party Payments,Fees - Level 4,520,13/05/2020,0520-00287,0.00,200.00,R,Ae Bia Assessments Limited,No
Http://opendatacommunities.org/id/metropolitan-district-council/leeds,Leeds City Council,31/05/2020,Adults and Health,Services For Adults Under 65 Mental/Dis,Third Party Payments,Fees - Level 4,520,13/05/2020,0520-00288,0.00,200.00,R,Ae Bia Assessments Limited,No
Http://opendatacommunities.org/id/metropolitan-district-council/leeds,Leeds City Council,31/05/2020,Adults and Health,Services For Adults Under 65 Mental/Dis,Third Party Payments,Fees - Level 4,520,13/05/2020,0520-00289,0.00,200.00,R,Ae Bia Assessments Limited,No
Http://opendatacommunities.org/id/metropolitan-district-council/leeds,Leeds City Council,31/05/2020,Adults and Health,Services For Adults Under 65 Mental/Dis,Third Party Payments,Fees - Level 4,520,13/05/2020,0520-00290,0.00,200.00,R,Ae Bia Assessments Limited,No
Http://opendatacommunities.org/id/metropolitan-district-council/leeds,Leeds City Council,31/05/2020,City Development,Highways,Capital,Other Costs,7,06/05/2020,0520-00291,0.00,58744.76,C,Aecom Limited,No
Http://opendatacommunities.org/id/metropolitan-district-council/leeds,Leeds City Council,31/05/2020,City Development,Highways,Capital,Other Costs,7,28/05/2020,0520-00292,0.00,3800.00,C,Aecom Limited,No
Http://opendatacommunities.org/id/metropolitan-district-council/leeds,Leeds City Council,31/05/2020,Adults and Health,Services For Older People - 65 And Over,Third Party Payments,Home Care,568,04/05/2020,0520-00293,0.00,204.69,R,Aegis Care Solutions Ltd,No
Http://opendatacommunities.org/id/metropolitan-district-council/leeds,Leeds City Council,31/05/2020,Adults and Health,Services For Older People - 65 And Over,Third Party Payments,Home Care,568,04/05/2020,0520-00294,0.00,1025.94,R,Aegis Care Solutions Ltd,No
Http://opendatacommunities.org/id/metropolitan-district-council/leeds,Leeds City Council As Accountable Body,31/05/2020,Social Services Pooled Budgets,Jcs For People With Learning Disabilitie,Third Party Payments,Residential,580,04/05/2020,0520-00295,0.00,3.95,R,Aegis Care Solutions Ltd,No
Http://opendatacommunities.org/id/metropolitan-district-council/leeds,Leeds City Council As Accountable Body,31/05/2020,Social Services Pooled Budgets,Jcs For People With Learning Disabilitie,Third Party Payments,Sheltered Accommodation,569,04/05/2020,0520-00296,0.00,9.62,R,Aegis Care Solutions Ltd,No
Http://opendatacommunities.org/id/metropolitan-district-council/leeds,Leeds City Council,31/05/2020,Adults and Health,Services For Adults Under 65 Mental/Dis,Third Party Payments,Home Care,568,15/05/2020,0520-00297,0.00,4112.00,R,Aegis Care Solutions Ltd,No
Http://opendatacommunities.org/id/metropolitan-district-council/leeds,Leeds City Council,31/05/2020,Adults and Health,Services For Adults Under 65 Mental/Dis,Third Party Payments,Home Care,568,15/05/2020,0520-00298,0.00,1409.00,R,Aegis Care Solutions Ltd,No
Http://opendatacommunities.org/id/metropolitan-district-council/leeds,Leeds City Council,31/05/2020,Adults and Health,Services For Adults Under 65 Mental/Dis,Third Party Payments,Home Care,568,15/05/2020,0520-00299,0.00,945.80,R,Aegis Care Solutions Ltd,No
Http://opendatacommunities.org/id/metropolitan-district-council/leeds,Leeds City Council,31/05/2020,Adults and Health,Services For Adults Under 65 Mental/Dis,Third Party Payments,Home Care,568,15/05/2020,0520-00300,0.00,1088.00,R,Aegis Care Solutions Ltd,No
Http://opendatacommunities.org/id/metropolitan-district-council/leeds,Leeds City Council,31/05/2020,Adults and Health,Services For Adults Under 65 Mental/Dis,Third Party Payments,Home Care,568,15/05/2020,0520-00301,0.00,1198.60,R,Aegis Care Solutions Ltd,No
Http://opendatacommunities.org/id/metropolitan-district-council/leeds,Leeds City Council,31/05/2020,Adults and Health,Services For Adults Under 65 Mental/Dis,Third Party Payments,Home Care,568,15/05/2020,0520-00302,0.00,2265.00,R,Aegis Care Solutions Ltd,No
Http://opendatacommunities.org/id/metropolitan-district-council/leeds,Leeds City Council,31/05/2020,Adults and Health,Services For Older People - 65 And Over,Third Party Payments,Home Care,568,20/05/2020,0520-00303,0.00,646.31,R,Aegis Care Solutions Ltd,No
Http://opendatacommunities.org/id/metropolitan-district-council/leeds,Leeds City Council,31/05/2020,Adults and Health,Services For Older People - 65 And Over,Third Party Payments,Home Care,568,04/05/2020,0520-00304,0.00,102.65,R,Affinity Trust,No
Http://opendatacommunities.org/id/metropolitan-district-council/leeds,Leeds City Council,31/05/2020,Adults and Health,Services For Older People - 65 And Over,Third Party Payments,Home Care,568,04/05/2020,0520-00305,0.00,50.60,R,Affinity Trust,No
Http://opendatacommunities.org/id/metropolitan-district-council/leeds,Leeds City Council As Accountable Body,31/05/2020,Social Services Pooled Budgets,Jcs For People With Learning Disabilitie,Third Party Payments,Sheltered Accommodation,569,04/05/2020,0520-00306,0.00,3391.57,R,Affinity Trust,No
Http://opendatacommunities.org/id/metropolitan-district-council/leeds,Leeds City Council,31/05/2020,Adults and Health,Services For Older People - 65 And Over,Third Party Payments,HCAIT Community Support,575,06/05/2020,0520-00307,0.00,575.28,R,Affinity Trust,No
Http://opendatacommunities.org/id/metropolitan-district-council/leeds,Leeds City Council As Accountable Body,31/05/2020,Social Services Pooled Budgets,Jcs For People With Learning Disabilitie,Third Party Payments,Home Care,568,14/05/2020,0520-00308,0.00,239.70,R,Affinity Trust,No
Http://opendatacommunities.org/id/metropolitan-district-council/leeds,Leeds City Council,31/05/2020,Adults and Health,Services For Adults Under 65 Mental/Dis,Third Party Payments,HCAIT Community Support,575,14/05/2020,0520-00309,0.00,336.40,R,Affinity Trust,No
Http://opendatacommunities.org/id/metropolitan-district-council/leeds,Leeds City Council As Accountable Body,31/05/2020,Social Services Pooled Budgets,Jcs For People With Learning Disabilitie,Third Party Payments,Home Care,568,14/05/2020,0520-00310,0.00,319.60,R,Affinity Trust,No
Http://opendatacommunities.org/id/metropolitan-district-council/leeds,Leeds City Council,31/05/2020,Adults and Health,Services For Adults Under 65 Mental/Dis,Third Party Payments,HCAIT Community Support,575,14/05/2020,0520-00311,0.00,336.40,R,Affinity Trust,No
Http://opendatacommunities.org/id/metropolitan-district-council/leeds,Leeds City Council As Accountable Body,31/05/2020,Social Services Pooled Budgets,Jcs For People With Learning Disabilitie,Third Party Payments,Home Care,568,19/05/2020,0520-00312,0.00,1518.00,R,Affinity Trust,No
Http://opendatacommunities.org/id/metropolitan-district-council/leeds,Leeds City Council,31/05/2020,Adults and Health,Services For Older People - 65 And Over,Third Party Payments,Home Care,568,20/05/2020,0520-00313,0.00,447.44,R,Affinity Trust,No
Http://opendatacommunities.org/id/metropolitan-district-council/leeds,Leeds City Council As Accountable Body,31/05/2020,Social Services Pooled Budgets,Jcs For People With Learning Disabilitie,Third Party Payments,Day Centre,564,20/05/2020,0520-00314,0.00,525.72,R,Affinity Trust,No
Http://opendatacommunities.org/id/metropolitan-district-council/leeds,Leeds City Council As Accountable Body,31/05/2020,Social Services Pooled Budgets,Jcs For People With Learning Disabilitie,Third Party Payments,Home Care,568,20/05/2020,0520-00315,0.00,804.48,R,Affinity Trust,No
Http://opendatacommunities.org/id/metropolitan-district-council/leeds,Leeds City Council As Accountable Body,31/05/2020,Social Services Pooled Budgets,Jcs For People With Learning Disabilitie,Third Party Payments,Home Care,568,20/05/2020,0520-00316,0.00,1005.60,R,Affinity Trust,No
Http://opendatacommunities.org/id/metropolitan-district-council/leeds,Leeds City Council As Accountable Body,31/05/2020,Social Services Pooled Budgets,Jcs For People With Learning Disabilitie,Third Party Payments,Day Centre,564,20/05/2020,0520-00317,0.00,714.78,R,Affinity Trust,No
Http://opendatacommunities.org/id/metropolitan-district-council/leeds,Leeds City Council As Accountable Body,31/05/2020,Social Services Pooled Budgets,Jcs For People With Learning Disabilitie,Third Party Payments,Home Care,568,20/05/2020,0520-00318,0.00,2346.40,R,Affinity Trust,No
Http://opendatacommunities.org/id/metropolitan-district-council/leeds,Leeds City Council As Accountable Body,31/05/2020,Social Services Pooled Budgets,Jcs For People With Learning Disabilitie,Third Party Payments,Day Centre,564,20/05/2020,0520-00319,0.00,1440.00,R,Affinity Trust,No
Http://opendatacommunities.org/id/metropolitan-district-council/leeds,Leeds City Council As Accountable Body,31/05/2020,Social Services Pooled Budgets,Jcs For People With Learning Disabilitie,Third Party Payments,Day Centre,564,20/05/2020,0520-00320,0.00,1440.00,R,Affinity Trust,No
Http://opendatacommunities.org/id/metropolitan-district-council/leeds,Leeds City Council As Accountable Body,31/05/2020,Social Services Pooled Budgets,Jcs For People With Learning Disabilitie,Third Party Payments,Home Care,568,20/05/2020,0520-00321,0.00,1080.00,R,Affinity Trust,No
Http://opendatacommunities.org/id/metropolitan-district-council/leeds,Leeds City Council As Accountable Body,31/05/2020,Social Services Pooled Budgets,Jcs For People With Learning Disabilitie,Third Party Payments,Home Care,568,20/05/2020,0520-00322,0.00,720.00,R,Affinity Trust,No
Http://opendatacommunities.org/id/metropolitan-district-council/leeds,Leeds City Council As Accountable Body,31/05/2020,Social Services Pooled Budgets,Jcs For People With Learning Disabilitie,Third Party Payments,Home Care,568,20/05/2020,0520-00323,0.00,1560.00,R,Affinity Trust,No
Http://opendatacommunities.org/id/metropolitan-district-council/leeds,Leeds City Council As Accountable Body,31/05/2020,Social Services Pooled Budgets,Jcs For People With Learning Disabilitie,Third Party Payments,Home Care,568,20/05/2020,0520-00324,0.00,2640.00,R,Affinity Trust,No
Http://opendatacommunities.org/id/metropolitan-district-council/leeds,Leeds City Council As Accountable Body,31/05/2020,Social Services Pooled Budgets,Jcs For People With Learning Disabilitie,Third Party Payments,Home Care,568,20/05/2020,0520-00325,0.00,2011.20,R,Affinity Trust,No
Http://opendatacommunities.org/id/metropolitan-district-council/leeds,Leeds City Council As Accountable Body,31/05/2020,Social Services Pooled Budgets,Jcs For People With Learning Disabilitie,Third Party Payments,Day Centre,564,20/05/2020,0520-00326,0.00,416.64,R,Affinity Trust,No
Http://opendatacommunities.org/id/metropolitan-district-council/leeds,Leeds City Council As Accountable Body,31/05/2020,Social Services Pooled Budgets,Jcs For People With Learning Disabilitie,Third Party Payments,Home Care,568,20/05/2020,0520-00327,0.00,1211.04,R,Affinity Trust,No
Http://opendatacommunities.org/id/metropolitan-district-council/leeds,Leeds City Council As Accountable Body,31/05/2020,Social Services Pooled Budgets,Jcs For People With Learning Disabilitie,Third Party Payments,Day Centre,564,20/05/2020,0520-00328,0.00,639.20,R,Affinity Trust,No
Http://opendatacommunities.org/id/metropolitan-district-council/leeds,Leeds City Council As Accountable Body,31/05/2020,Social Services Pooled Budgets,Jcs For People With Learning Disabilitie,Third Party Payments,Home Care,568,20/05/2020,0520-00329,0.00,1086.64,R,Affinity Trust,No
Http://opendatacommunities.org/id/metropolitan-district-council/leeds,Leeds City Council As Accountable Body,31/05/2020,Social Services Pooled Budgets,Jcs For People With Learning Disabilitie,Third Party Payments,Home Care,568,20/05/2020,0520-00330,0.00,941.92,R,Affinity Trust,No
Http://opendatacommunities.org/id/metropolitan-district-council/leeds,Leeds City Council As Accountable Body,31/05/2020,Social Services Pooled Budgets,Jcs For People With Learning Disabilitie,Third Party Payments,Home Care,568,20/05/2020,0520-00331,0.00,958.80,R,Affinity Trust,No
Http://opendatacommunities.org/id/metropolitan-district-council/leeds,Leeds City Council As Accountable Body,31/05/2020,Social Services Pooled Budgets,Jcs For People With Learning Disabilitie,Third Party Payments,Home Care,568,20/05/2020,0520-00332,0.00,767.04,R,Affinity Trust,No
Http://opendatacommunities.org/id/metropolitan-district-council/leeds,Leeds City Council As Accountable Body,31/05/2020,Social Services Pooled Budgets,Jcs For People With Learning Disabilitie,Third Party Payments,Home Care,568,20/05/2020,0520-00333,0.00,1342.32,R,Affinity Trust,No
Http://opendatacommunities.org/id/metropolitan-district-council/leeds,Leeds City Council As Accountable Body,31/05/2020,Social Services Pooled Budgets,Jcs For People With Learning Disabilitie,Third Party Payments,Home Care,568,20/05/2020,0520-00334,0.00,575.28,R,Affinity Trust,No
Http://opendatacommunities.org/id/metropolitan-district-council/leeds,Leeds City Council As Accountable Body,31/05/2020,Social Services Pooled Budgets,Jcs For People With Learning Disabilitie,Third Party Payments,Home Care,568,20/05/2020,0520-00335,0.00,240.00,R,Affinity Trust,No
Http://opendatacommunities.org/id/metropolitan-district-council/leeds,Leeds City Council As Accountable Body,31/05/2020,Social Services Pooled Budgets,Jcs For People With Learning Disabilitie,Third Party Payments,Home Care,568,20/05/2020,0520-00336,0.00,990.76,R,Affinity Trust,No
Http://opendatacommunities.org/id/metropolitan-district-council/leeds,Leeds City Council As Accountable Body,31/05/2020,Social Services Pooled Budgets,Jcs For People With Learning Disabilitie,Third Party Payments,Home Care,568,21/05/2020,0520-00337,0.00,1980.00,R,Affinity Trust,No
Http://opendatacommunities.org/id/metropolitan-district-council/leeds,Leeds City Council As Accountable Body,31/05/2020,Social Services Pooled Budgets,Jcs For People With Learning Disabilitie,Third Party Payments,Day Centre,564,21/05/2020,0520-00338,0.00,1080.00,R,Affinity Trust,No
Http://opendatacommunities.org/id/metropolitan-district-council/leeds,Leeds City Council As Accountable Body,31/05/2020,Social Services Pooled Budgets,Jcs For People With Learning Disabilitie,Third Party Payments,Day Centre,564,21/05/2020,0520-00339,0.00,2031.48,R,Affinity Trust,No
Http://opendatacommunities.org/id/metropolitan-district-council/leeds,Leeds City Council As Accountable Body,31/05/2020,Social Services Pooled Budgets,Jcs For People With Learning Disabilitie,Third Party Payments,Home Care,568,21/05/2020,0520-00340,0.00,770.96,R,Affinity Trust,No
Http://opendatacommunities.org/id/metropolitan-district-council/leeds,Leeds City Council As Accountable Body,31/05/2020,Social Services Pooled Budgets,Jcs For People With Learning Disabilitie,Third Party Payments,Home Care,568,21/05/2020,0520-00341,0.00,255.68,R,Affinity Trust,No
Http://opendatacommunities.org/id/metropolitan-district-council/leeds,Leeds City Council As Accountable Body,31/05/2020,Social Services Pooled Budgets,Jcs For People With Learning Disabilitie,Third Party Payments,Home Care,568,21/05/2020,0520-00342,0.00,319.60,R,Affinity Trust,No
Http://opendatacommunities.org/id/metropolitan-district-council/leeds,Leeds City Council As Accountable Body,31/05/2020,Social Services Pooled Budgets,Jcs For People With Learning Disabilitie,Third Party Payments,Home Care,568,21/05/2020,0520-00343,0.00,420.00,R,Affinity Trust,No
Http://opendatacommunities.org/id/metropolitan-district-council/leeds,Leeds City Council As Accountable Body,31/05/2020,Social Services Pooled Budgets,Jcs For People With Learning Disabilitie,Third Party Payments,Home Care,568,22/05/2020,0520-00344,0.00,1800.40,R,Affinity Trust,No
Http://opendatacommunities.org/id/metropolitan-district-council/leeds,Leeds City Council As Accountable Body,31/05/2020,Social Services Pooled Budgets,Jcs For People With Learning Disabilitie,Third Party Payments,Day Centre,564,27/05/2020,0520-00345,0.00,977.31,R,Affinity Trust,No
Http://opendatacommunities.org/id/metropolitan-district-council/leeds,Leeds City Council As Accountable Body,31/05/2020,Social Services Pooled Budgets,Jcs For People With Learning Disabilitie,Third Party Payments,Day Centre,564,28/05/2020,0520-00346,0.00,15207.00,R,Affinity Trust,No
Http://opendatacommunities.org/id/metropolitan-district-council/leeds,Leeds City Council As Accountable Body,31/05/2020,Social Services Pooled Budgets,Jcs For People With Learning Disabilitie,Third Party Payments,Day Centre,564,28/05/2020,0520-00347,0.00,15207.00,R,Affinity Trust,No
Http://opendatacommunities.org/id/metropolitan-district-council/leeds,Leeds City Council As Accountable Body,31/05/2020,Social Services Pooled Budgets,Jcs For People With Learning Disabilitie,Third Party Payments,Day Centre,564,28/05/2020,0520-00348,0.00,9142.77,R,Affinity Trust,No
Http://opendatacommunities.org/id/metropolitan-district-council/leeds,Leeds City Council As Accountable Body,31/05/2020,Social Services Pooled Budgets,Jcs For People With Learning Disabilitie,Third Party Payments,Home Care,568,29/05/2020,0520-00349,0.00,4370.53,R,Affinity Trust,No
Http://opendatacommunities.org/id/metropolitan-district-council/leeds,Leeds City Council,31/05/2020,Adults and Health,Services For Older People - 65 And Over,Third Party Payments,Nursing Home,570,04/05/2020,0520-00350,0.00,12718.38,R,Affinity Trust North Divisional Office,No
Http://opendatacommunities.org/id/metropolitan-district-council/leeds,Leeds City Council,31/05/2020,Adults and Health,Services For Older People Under 65 P/Dis,Third Party Payments,Sheltered Accommodation,569,27/05/2020,0520-00351,0.00,7610.40,R,Affinity Trust North Divisional Office,No
Http://opendatacommunities.org/id/metropolitan-district-council/leeds,Leeds City Council As Accountable Body,31/05/2020,Social Services Pooled Budgets,Jcs For People With Learning Disabilitie,Third Party Payments,Sheltered Accommodation,569,27/05/2020,0520-00352,0.00,104945.14,R,Affinity Trust North Divisional Office,No
Http://opendatacommunities.org/id/metropolitan-district-council/leeds,Leeds City Council,31/05/2020,City Development,Recreation,Supplies and Services,Other Hired And Contracted Services,265,27/05/2020,0520-00353,0.00,3388.70,R,Age Uk Leeds,No
Http://opendatacommunities.org/id/metropolitan-district-council/leeds,Leeds City Council,31/05/2020,Adults and Health,Public Health,Third Party Payments,Services Rendered By Voluntary Sector,505,27/05/2020,0520-00354,0.00,30000.00,R,Age Uk Leeds,No
Http://opendatacommunities.org/id/metropolitan-district-council/leeds,Leeds City Council,31/05/2020,Insurance,Insurance,Supplies and Services,Insurance Claims,248,18/05/2020,0520-00355,0.00,240.00,R,Ageas Law,No
Http://opendatacommunities.org/id/metropolitan-district-council/leeds,Leeds City Council,31/05/2020,Communities and Environment,Customer Access,Supplies and Services,Other Hired And Contracted Services,265,13/05/2020,0520-00356,0.00,50.00,R,Agency For Good Ltd,No
Http://opendatacommunities.org/id/metropolitan-district-council/leeds,Leeds City Council,31/05/2020,City Development,Libraries  Arts & Heritage,Supplies and Services,Other Hired And Contracted Services,265,18/05/2020,0520-00357,0.00,496.00,R,Agency For Good Ltd,No
Http://opendatacommunities.org/id/metropolitan-district-council/leeds,Leeds City Council,31/05/2020,Insurance,Insurance,Supplies and Services,Insurance Claims,248,15/05/2020,0520-00358,0.00,400.00,R,REDACTED PERSONAL DATA,No
Http://opendatacommunities.org/id/metropolitan-district-council/leeds,Leeds City Council,31/05/2020,Resources and Housing,Sustainable Energy & Climate Change,Capital,Other Costs,7,14/05/2020,0520-00359,0.00,1500.00,C,REDACTED COMMERCIAL CONFIDENTIALITY,No
Http://opendatacommunities.org/id/metropolitan-district-council/leeds,Leeds City Council,31/05/2020,Communities and Environment,Customer Access,Supplies and Services,Bought In Professional Services,277,01/05/2020,0520-00360,0.00,27.00,R,Ahmed Moustafa Moustafa Mousa,No
Http://opendatacommunities.org/id/metropolitan-district-council/leeds,Leeds City Council,31/05/2020,Resources and Housing,Sustainable Energy & Climate Change,Capital,Other Costs,7,12/05/2020,0520-00361,0.00,1500.00,C,REDACTED COMMERCIAL CONFIDENTIALITY,No
Http://opendatacommunities.org/id/metropolitan-district-council/leeds,Leeds City Council As Accountable Body,31/05/2020,Social Services Pooled Budgets,Leeds Community Equip Store Pooled Budgt,Supplies and Services,Other Equipment,203,15/05/2020,0520-00362,0.00,20.35,R,Aidapt Bathrooms Ltd,No
Http://opendatacommunities.org/id/metropolitan-district-council/leeds,Leeds City Council As Accountable Body,31/05/2020,Social Services Pooled Budgets,Leeds Community Equip Store Pooled Budgt,Supplies and Services,Other Equipment,203,15/05/2020,0520-00363,0.00,856.00,R,Aidapt Bathrooms Ltd,No
Http://opendatacommunities.org/id/metropolitan-district-council/leeds,Leeds City Council As Accountable Body,31/05/2020,Social Services Pooled Budgets,Leeds Community Equip Store Pooled Budgt,Supplies and Services,Other Equipment,203,18/05/2020,0520-00364,0.00,1430.00,R,Aidapt Bathrooms Ltd,No
Http://opendatacommunities.org/id/metropolitan-district-council/leeds,Leeds City Council,31/05/2020,Adults and Health,Other Generic Services,Supplies and Services,Operational Furniture And Equipment,203,22/05/2020,0520-00365,0.00,-509.80,R,Aidapt Bathrooms Ltd,No
Http://opendatacommunities.org/id/metropolitan-district-council/leeds,Leeds City Council,31/05/2020,Adults and Health,Other Generic Services,Supplies and Services,Operational Furniture And Equipment,203,22/05/2020,0520-00366,0.00,880.00,R,Aidapt Bathrooms Ltd,No
Http://opendatacommunities.org/id/metropolitan-district-council/leeds,Leeds City Council,31/05/2020,Adults and Health,Other Generic Services,Supplies and Services,Operational Furniture And Equipment,203,22/05/2020,0520-00367,0.00,1247.60,R,Aidapt Bathrooms Ltd,No
Http://opendatacommunities.org/id/metropolitan-district-council/leeds,Leeds City Council As Accountable Body,31/05/2020,Social Services Pooled Budgets,Leeds Community Equip Store Pooled Budgt,Supplies and Services,Other Equipment,203,22/05/2020,0520-00368,0.00,509.80,R,Aidapt Bathrooms Ltd,No
Http://opendatacommunities.org/id/metropolitan-district-council/leeds,Leeds City Council,31/05/2020,Adults and Health,Other Generic Services,Supplies and Services,Operational Furniture And Equipment,203,22/05/2020,0520-00369,0.00,1720.90,R,Aidapt Bathrooms Ltd,No
Http://opendatacommunities.org/id/metropolitan-district-council/leeds,Leeds City Council,31/05/2020,Adults and Health,Other Generic Services,Supplies and Services,Operational Furniture And Equipment,203,22/05/2020,0520-00370,0.00,2464.00,R,Aidapt Bathrooms Ltd,No
Http://opendatacommunities.org/id/metropolitan-district-council/leeds,Leeds City Council,31/05/2020,Adults and Health,Other Generic Services,Supplies and Services,Operational Furniture And Equipment,203,22/05/2020,0520-00371,0.00,637.25,R,Aidapt Bathrooms Ltd,No
Http://opendatacommunities.org/id/metropolitan-district-council/leeds,Leeds City Council,31/05/2020,Adults and Health,Other Generic Services,Supplies and Services,Operational Furniture And Equipment,203,22/05/2020,0520-00372,0.00,1496.00,R,Aidapt Bathrooms Ltd,No
Http://opendatacommunities.org/id/metropolitan-district-council/leeds,Leeds City Council,31/05/2020,Adults and Health,Other Generic Services,Supplies and Services,Operational Furniture And Equipment,203,26/05/2020,0520-00373,0.00,1950.00,R,Aidapt Bathrooms Ltd,No
Http://opendatacommunities.org/id/metropolitan-district-council/leeds,Leeds City Council As Accountable Body,31/05/2020,Social Services Pooled Budgets,Leeds Community Equip Store Pooled Budgt,Supplies and Services,Other Equipment,203,26/05/2020,0520-00374,0.00,1274.50,R,Aidapt Bathrooms Ltd,No
Http://opendatacommunities.org/id/metropolitan-district-council/leeds,Leeds City Council,31/05/2020,Adults and Health,Other Generic Services,Supplies and Services,Operational Furniture And Equipment,203,29/05/2020,0520-00375,0.00,1274.50,R,Aidapt Bathrooms Ltd,No
Http://opendatacommunities.org/id/metropolitan-district-council/leeds,Leeds City Council,31/05/2020,Children and Families,Social Care,Supplies and Services,Food & Drink,231,01/05/2020,0520-00376,0.00,21.15,R,Aim Project,No
Http://opendatacommunities.org/id/metropolitan-district-council/leeds,Leeds City Council,31/05/2020,Strategic Accounts,Miscellaneous,Transfer Payments,Land Drainage Levies,665,01/05/2020,0520-00377,0.00,3868.44,R,Ainsty (2008) Internal Drainage Board,No
Http://opendatacommunities.org/id/metropolitan-district-council/leeds,Leeds City Council,31/05/2020,Resources and Housing,Leeds Building Services,Supplies and Services,Operational Materials,205,04/05/2020,0520-00378,0.00,33.25,R,Air Conditioning Accessories,No
Http://opendatacommunities.org/id/metropolitan-district-council/leeds,Leeds City Council,31/05/2020,Resources and Housing,Leeds Building Services,Supplies and Services,Operational Materials,205,05/05/2020,0520-00379,0.00,196.32,R,Air Liquide Uk,No
Http://opendatacommunities.org/id/metropolitan-district-council/leeds,Leeds City Council,31/05/2020,Resources and Housing,Leeds Building Services,Supplies and Services,Operational Materials,205,26/05/2020,0520-00380,0.00,196.32,R,Air Liquide Uk,No
Http://opendatacommunities.org/id/metropolitan-district-council/leeds,Leeds City Council,31/05/2020,Communities and Environment,Parks and Countryside,Capital,Other Costs,7,21/05/2020,0520-00381,0.00,68812.50,C,Aire Logic Ltd,No
Http://opendatacommunities.org/id/metropolitan-district-council/leeds,Leeds City Council,31/05/2020,City Development,Libraries  Arts & Heritage,Supplies and Services,Non-Recurring Grants,227,27/05/2020,0520-00382,0.00,1080.00,R,Aire Place Studios Cic,No
Http://opendatacommunities.org/id/metropolitan-district-council/leeds,Leeds City Council,31/05/2020,Communities and Environment,Parks and Countryside,Supplies and Services,Other Hired And Contracted Services,265,29/05/2020,0520-00383,0.00,2000.00,R,Aire Valley Tree Services Ltd,No
Http://opendatacommunities.org/id/metropolitan-district-council/leeds,Leeds City Council,31/05/2020,Adults and Health,Services For Older People - 65 And Over,Third Party Payments,Nursing Home,570,04/05/2020,0520-00384,0.00,7942.16,R,Aire View Residential Home,No
Http://opendatacommunities.org/id/metropolitan-district-council/leeds,Leeds City Council,31/05/2020,Adults and Health,Services For Older People - 65 And Over,Third Party Payments,Residential Care Dementia,571,27/05/2020,0520-00385,0.00,41136.75,R,Aire View Residential Home,No
Http://opendatacommunities.org/id/metropolitan-district-council/leeds,Leeds City Council,31/05/2020,Adults and Health,Services For Older People - 65 And Over,Third Party Payments,Residential,580,27/05/2020,0520-00386,0.00,7597.52,R,Aire View Residential Home,No
Http://opendatacommunities.org/id/metropolitan-district-council/leeds,Leeds City Council,31/05/2020,Adults and Health,Services For Older People - 65 And Over,Third Party Payments,Nursing Home,570,04/05/2020,0520-00387,0.00,2994.93,R,Airedale Care Home,No
Http://opendatacommunities.org/id/metropolitan-district-council/leeds,Leeds City Council,31/05/2020,Adults and Health,Services For Older People - 65 And Over,Third Party Payments,Residential Care Dementia,571,27/05/2020,0520-00388,0.00,1511.60,R,Airedale Care Home,No
Http://opendatacommunities.org/id/metropolitan-district-council/leeds,Leeds City Council,31/05/2020,Adults and Health,Services For Older People - 65 And Over,Third Party Payments,Residential,580,27/05/2020,0520-00389,0.00,18217.94,R,Airedale Care Home,No
Http://opendatacommunities.org/id/metropolitan-district-council/leeds,Leeds City Council,31/05/2020,Communities and Environment,Customer Access,Supplies and Services,Schools related grant expenditure,299,11/05/2020,0520-00390,0.00,93730.60,R,Airedale Catering Equipment Ltd,No
Http://opendatacommunities.org/id/metropolitan-district-council/leeds,Leeds City Council,31/05/2020,Resources and Housing,Commercial Services,Premises,Fixtures & Fittings,131,22/05/2020,0520-00391,0.00,11859.00,R,Airedale Catering Equipment Ltd,No
Http://opendatacommunities.org/id/metropolitan-district-council/leeds,Leeds City Council,31/05/2020,Resources and Housing,Leeds Building Services,Supplies and Services,Other Hired And Contracted Services,265,29/05/2020,0520-00392,0.00,1284.00,R,Airedale Catering Equipment Ltd,No
Http://opendatacommunities.org/id/metropolitan-district-council/leeds,Leeds City Council,31/05/2020,Resources and Housing,Strategic Housing Partnership & Support  ,Transport,Public Transport Expenses,310,09/04/2020,0520-00393,0.00,184.05,R,Airpay Global Limited,Yes
Http://opendatacommunities.org/id/metropolitan-district-council/leeds,Leeds City Council,31/05/2020,Adults and Health,Services For Adults Under 65 Mental/Dis,Third Party Payments,Services Provided By Other NHS Bodies,522,14/05/2020,0520-00394,0.00,175.00,R,Ait Mitra Limited,No
Http://opendatacommunities.org/id/metropolitan-district-council/leeds,Leeds City Council,31/05/2020,Adults and Health,Services For Adults Under 65 Mental/Dis,Third Party Payments,Services Provided By Other NHS Bodies,522,14/05/2020,0520-00395,0.00,175.00,R,Ait Mitra Limited,No
Http://opendatacommunities.org/id/metropolitan-district-council/leeds,Leeds City Council,31/05/2020,Adults and Health,Services For Adults Under 65 Mental/Dis,Third Party Payments,Services Provided By Other NHS Bodies,522,15/05/2020,0520-00396,0.00,175.00,R,Ait Mitra Limited,No
